Publisher Label,Publisher URI,"Supplier","Net Amount (£)","Organisational Unit","Merchant Category Code","Purpose","Payment Date"
"Wolverhampton City Council","http://opendatacommunities.org/id/metropolitan-district-council/wolverhampton","PC WORLD ONLINE","129.00","LAC Transitions Team","5732","Equipment - Purchase","01/12/2017"
"Wolverhampton City Council","http://opendatacommunities.org/id/metropolitan-district-council/wolverhampton","FACEBK VGSGCDNG52","117.49","Audience Development","7311","Marketing \ Non-staff advertising","01/12/2017"
"Wolverhampton City Council","http://opendatacommunities.org/id/metropolitan-district-council/wolverhampton","FACEBK TGSGCDNG52","40.37","Audience Development","7311","Marketing \ Non-staff advertising","01/12/2017"
"Wolverhampton City Council","http://opendatacommunities.org/id/metropolitan-district-council/wolverhampton","YMLP.COM","105.00","Audience Development","7372","Computing - Purchase of Software","01/12/2017"
"Wolverhampton City Council","http://opendatacommunities.org/id/metropolitan-district-council/wolverhampton","FACEBK JRKMXCE982","22.35","Audience Development","7311","Marketing \ Non-staff advertising","01/12/2017"
"Wolverhampton City Council","http://opendatacommunities.org/id/metropolitan-district-council/wolverhampton","FACEBK HRKMXCE982","15.74","Audience Development","7311","Marketing \ Non-staff advertising","01/12/2017"
"Wolverhampton City Council","http://opendatacommunities.org/id/metropolitan-district-council/wolverhampton","ITUNES.COM/BILL","2.49","Headstart - Learning Technologies Team","5735","Computing - Purchase of Software","01/12/2017"
"Wolverhampton City Council","http://opendatacommunities.org/id/metropolitan-district-council/wolverhampton","ITUNES.COM/BILL","2.99","Headstart - Learning Technologies Team","5735","Computing - Purchase of Software","01/12/2017"
"Wolverhampton City Council","http://opendatacommunities.org/id/metropolitan-district-council/wolverhampton","FACEBK XU2N3FW9R2","25.96","Communications & Marketing - General","7311","Marketing \ Non-staff advertising","01/12/2017"
"Wolverhampton City Council","http://opendatacommunities.org/id/metropolitan-district-council/wolverhampton","FACEBK VU2N3FW9R2","384.60","Communications & Marketing - General","7311","Marketing \ Non-staff advertising","01/12/2017"
"Wolverhampton City Council","http://opendatacommunities.org/id/metropolitan-district-council/wolverhampton","SNAP    GEOFILTERS","54.46","Communications & Marketing - General","7311","Marketing \ Non-staff advertising","01/12/2017"
"Wolverhampton City Council","http://opendatacommunities.org/id/metropolitan-district-council/wolverhampton","FACEBK NFT98DAB82","78.90","Communications & Marketing - General","7311","Marketing \ Non-staff advertising","01/12/2017"
"Wolverhampton City Council","http://opendatacommunities.org/id/metropolitan-district-council/wolverhampton","ENVATOMARKET38448071","13.12","Communications & Marketing - General","5815","Computing - Purchase of Software","01/12/2017"
"Wolverhampton City Council","http://opendatacommunities.org/id/metropolitan-district-council/wolverhampton","WOLVERHAMPTON CC","6.50","IMPACT","7523","Car Allowances","01/12/2017"
"Wolverhampton City Council","http://opendatacommunities.org/id/metropolitan-district-council/wolverhampton","THE POST OFFICE","220.00","IMPACT","9402","Comms - Postage","01/12/2017"
"Wolverhampton City Council","http://opendatacommunities.org/id/metropolitan-district-council/wolverhampton","HOME BARGAINS WOLVERHA","18.30","Aldersley Leisure Village","5251","Equipment - Purchase","01/12/2017"
"Wolverhampton City Council","http://opendatacommunities.org/id/metropolitan-district-council/wolverhampton","WWW.PREMIER-STORAGE.CO","119.88","Central Baths","5021","Furniture","01/12/2017"
"Wolverhampton City Council","http://opendatacommunities.org/id/metropolitan-district-council/wolverhampton","Trainline","287.74","Admin & Support","4112","Public Transport","01/12/2017"
"Wolverhampton City Council","http://opendatacommunities.org/id/metropolitan-district-council/wolverhampton","NATWEST BANK","100.00","EIP Locality 8","6011","Grant Payments","01/12/2017"
"Wolverhampton City Council","http://opendatacommunities.org/id/metropolitan-district-council/wolverhampton","ASDA STORE 4351","21.67","Cemeteries","5411","Provisions (Not for resale)","01/12/2017"
"Wolverhampton City Council","http://opendatacommunities.org/id/metropolitan-district-council/wolverhampton","MARKS&SPENCER PLC","52.00","LAC Education Team (LACE)","5411","Catering","01/12/2017"
"Wolverhampton City Council","http://opendatacommunities.org/id/metropolitan-district-council/wolverhampton","POST OFFICE COUNTER","65.00","LAC Education Team (LACE)","9402","Comms - Postage","01/12/2017"
"Wolverhampton City Council","http://opendatacommunities.org/id/metropolitan-district-council/wolverhampton","TESCO STORE 3290","31.25","Cemeteries","5411","Provisions (Not for resale)","01/12/2017"
"Wolverhampton City Council","http://opendatacommunities.org/id/metropolitan-district-council/wolverhampton","HOME BARGAINS TELFORD","31.06","Cemeteries","5251","Equipment - Purchase","01/12/2017"
"Wolverhampton City Council","http://opendatacommunities.org/id/metropolitan-district-council/wolverhampton","APPLE ONLINE STORE GBP","199.00","Strategic ICTS (ICT Serv Budget)","5732","Equipment - Purchase","01/12/2017"
"Wolverhampton City Council","http://opendatacommunities.org/id/metropolitan-district-council/wolverhampton","APPLE ONLINE STORE GBP","957.50","Strategic ICTS (ICT Serv Budget)","5732","Equipment - Purchase","01/12/2017"
"Wolverhampton City Council","http://opendatacommunities.org/id/metropolitan-district-council/wolverhampton","ASDA HOME SHOPPING","1.62","Upper Pendeford Farm Childrens Home","5411","Provisions (Not for resale)","01/12/2017"
"Wolverhampton City Council","http://opendatacommunities.org/id/metropolitan-district-council/wolverhampton","ASDA HOME SHOPPING","250.41","Upper Pendeford Farm Childrens Home","5411","Provisions (Not for resale)","01/12/2017"
"Wolverhampton City Council","http://opendatacommunities.org/id/metropolitan-district-council/wolverhampton","Virgin Trains","73.80","LAC Team","4112","Public Transport","01/12/2017"
"Wolverhampton City Council","http://opendatacommunities.org/id/metropolitan-district-council/wolverhampton","PAYPAL  TOPBEDDINGC","6.66","LAC Transitions Team","5611","Client Allowances","01/12/2017"
"Wolverhampton City Council","http://opendatacommunities.org/id/metropolitan-district-council/wolverhampton","Virgin Trains","154.00","Strategic Asset Management - General","4112","Public Transport","01/12/2017"
"Wolverhampton City Council","http://opendatacommunities.org/id/metropolitan-district-council/wolverhampton","B&M RETAIL","166.67","Civic Centre","5310","Equipment - Purchase","01/12/2017"
"Wolverhampton City Council","http://opendatacommunities.org/id/metropolitan-district-council/wolverhampton","LEAR PRINT","3.00","EIP Locality 1","2741","Stationery","01/12/2017"
"Wolverhampton City Council","http://opendatacommunities.org/id/metropolitan-district-council/wolverhampton","AMAZON.CO.UK","51.38","SEN Sensory Inclusion","5942","Equipment - Purchase","01/12/2017"
"Wolverhampton City Council","http://opendatacommunities.org/id/metropolitan-district-council/wolverhampton","BRITISH STANDARDS","114.00","Environmental Health - Pub Prot - Gen","7399","Equipment - Purchase","01/12/2017"
"Wolverhampton City Council","http://opendatacommunities.org/id/metropolitan-district-council/wolverhampton","REGISTRARS OFFICE","10.00","CIN/CP Social Work Unit - Area 4","8299","Section 17","01/12/2017"
"Wolverhampton City Council","http://opendatacommunities.org/id/metropolitan-district-council/wolverhampton","TOOLSTATION LTD","16.27","Education Catering - General Overheads","5251","Equipment - R & M","01/12/2017"
"Wolverhampton City Council","http://opendatacommunities.org/id/metropolitan-district-council/wolverhampton","Trainline","187.17","Legal Services","4112","Public Transport","01/12/2017"
"Wolverhampton City Council","http://opendatacommunities.org/id/metropolitan-district-council/wolverhampton","WWW.SEVERNTRENTSEARCHE","325.00","Disposal Costs","4900","Services - Professional Fees","01/12/2017"
"Wolverhampton City Council","http://opendatacommunities.org/id/metropolitan-district-council/wolverhampton","J VAN VLIET BIRMINGHAM","99.55","Creative Studies Delivery Area","5399","Materials for resale","01/12/2017"
"Wolverhampton City Council","http://opendatacommunities.org/id/metropolitan-district-council/wolverhampton","Amazon UK Marketplace","29.84","EIP Locality 7","5942","Grant Payments","01/12/2017"
"Wolverhampton City Council","http://opendatacommunities.org/id/metropolitan-district-council/wolverhampton","Virgin Trains","19.30","Planning","4112","Public Transport","01/12/2017"
"Wolverhampton City Council","http://opendatacommunities.org/id/metropolitan-district-council/wolverhampton","Virgin Trains","108.60","Planning","4112","Public Transport","01/12/2017"
"Wolverhampton City Council","http://opendatacommunities.org/id/metropolitan-district-council/wolverhampton","Virgin Trains","322.50","Scrutiny & Transparency","4112","Public Transport","01/12/2017"
"Wolverhampton City Council","http://opendatacommunities.org/id/metropolitan-district-council/wolverhampton","THE FLOWER STALL","125.00","Mayoral Expenses","5992","Hospitality","01/12/2017"
"Wolverhampton City Council","http://opendatacommunities.org/id/metropolitan-district-council/wolverhampton","WWW.WMCA.CO.UK","84.00","Economic Development","4112","Public Transport","30/11/2017"
"Wolverhampton City Council","http://opendatacommunities.org/id/metropolitan-district-council/wolverhampton","BLOXWICH  SST","7.00","Economic Development","4112","Public Transport","30/11/2017"
"Wolverhampton City Council","http://opendatacommunities.org/id/metropolitan-district-council/wolverhampton","AMAZON.CO.UK","57.90","Headstart - Learning Technologies Team","5942","Books","30/11/2017"
"Wolverhampton City Council","http://opendatacommunities.org/id/metropolitan-district-council/wolverhampton","BOOKDEPOSITORY.COM","25.33","Headstart Phase 3","5942","Books","30/11/2017"
"Wolverhampton City Council","http://opendatacommunities.org/id/metropolitan-district-council/wolverhampton","WWW.WMCA.CO.UK","54.50","IMPACT","9399","Services - Fees and Charges","30/11/2017"
"Wolverhampton City Council","http://opendatacommunities.org/id/metropolitan-district-council/wolverhampton","ASDA SUPERSTORE","13.78","Mayoral Expenses","5411","Provisions (Not for resale)","30/11/2017"
"Wolverhampton City Council","http://opendatacommunities.org/id/metropolitan-district-council/wolverhampton","ARGOS WOLVERHAMPTO","19.98","Youth Offending Team","5310","Equipment - Purchase","30/11/2017"
"Wolverhampton City Council","http://opendatacommunities.org/id/metropolitan-district-council/wolverhampton","H S HOMMERS&SONS (D B)","87.50","EIP Locality 6","5261","Equipment - Purchase","30/11/2017"
"Wolverhampton City Council","http://opendatacommunities.org/id/metropolitan-district-council/wolverhampton","WWW.ARGOS.CO.UK","88.63","Central Costs","5310","Equipment - Purchase","30/11/2017"
"Wolverhampton City Council","http://opendatacommunities.org/id/metropolitan-district-council/wolverhampton","SCREWFIX WOLVERHAM","22.49","LAC Transitions Team","5211","Client Allowances","30/11/2017"
"Wolverhampton City Council","http://opendatacommunities.org/id/metropolitan-district-council/wolverhampton","POUNDSTRETCHER 703","9.98","LAC Transitions Team","5714","Client Allowances","30/11/2017"
"Wolverhampton City Council","http://opendatacommunities.org/id/metropolitan-district-council/wolverhampton","CUMMINGS BROTHERS LOCK","18.75","Caretakers Community Centre","7399","R&M - Departmental planned (external)","30/11/2017"
"Wolverhampton City Council","http://opendatacommunities.org/id/metropolitan-district-council/wolverhampton","CUMMINGS BROTHERS LOCK","18.33","Caretakers Community Centre","7399","R&M - Departmental planned (external)","30/11/2017"
"Wolverhampton City Council","http://opendatacommunities.org/id/metropolitan-district-council/wolverhampton","CUMMINGS BROTHERS LOCK","13.33","Statutory Services (10RM)","7399","R&M - Departmental planned (external)","30/11/2017"
"Wolverhampton City Council","http://opendatacommunities.org/id/metropolitan-district-council/wolverhampton","CUMMINGS BROTHERS LOCK","14.17","Statutory Services (10RM)","7399","R&M - Departmental planned (external)","30/11/2017"
"Wolverhampton City Council","http://opendatacommunities.org/id/metropolitan-district-council/wolverhampton","CUMMINGS BROTHERS LOCK","8.33","Caretakers Community Centre","7399","R&M - Departmental planned (external)","30/11/2017"
"Wolverhampton City Council","http://opendatacommunities.org/id/metropolitan-district-council/wolverhampton","HOME BARGAINS WOLVERHA","68.17","Civic Centre","5251","Equipment - Purchase","30/11/2017"
"Wolverhampton City Council","http://opendatacommunities.org/id/metropolitan-district-council/wolverhampton","HOME BARGAINS WOLVERHA","149.90","Civic Centre","5251","Equipment - Purchase","30/11/2017"
"Wolverhampton City Council","http://opendatacommunities.org/id/metropolitan-district-council/wolverhampton","CODSALL AND WERGS GARD","16.98","Civic Centre","5261","Equipment - Purchase","30/11/2017"
"Wolverhampton City Council","http://opendatacommunities.org/id/metropolitan-district-council/wolverhampton","AMAZON.CO.UK","12.99","SEN Sensory Inclusion","5942","Equipment - Purchase","30/11/2017"
"Wolverhampton City Council","http://opendatacommunities.org/id/metropolitan-district-council/wolverhampton","B & Q 1243","21.42","Community Enablement","5211","Equipment - R & M","30/11/2017"
"Wolverhampton City Council","http://opendatacommunities.org/id/metropolitan-district-council/wolverhampton","WWW.THEARTIFICIALFLOWE","74.94","Jane & Louise Wilson","5193","Materials","30/11/2017"
"Wolverhampton City Council","http://opendatacommunities.org/id/metropolitan-district-council/wolverhampton","BHAMCOUNCILPHONE","50.00","Environmental Health - Pub Prot - Gen","9399","Services - Fees and Charges","30/11/2017"
"Wolverhampton City Council","http://opendatacommunities.org/id/metropolitan-district-council/wolverhampton","THE COAL AUTHORITY","91.50","Disposal Costs","9399","Services - Professional Fees","30/11/2017"
"Wolverhampton City Council","http://opendatacommunities.org/id/metropolitan-district-council/wolverhampton","ENTERPRISE RENT-A-CAR","-200.00","CIN/CP Social Work Unit - Area 1","3405","Section 17","30/11/2017"
"Wolverhampton City Council","http://opendatacommunities.org/id/metropolitan-district-council/wolverhampton","AMAZON.CO.UK","69.66","Parks - Ranger Service","5942","Equipment - Purchase","30/11/2017"
"Wolverhampton City Council","http://opendatacommunities.org/id/metropolitan-district-council/wolverhampton","GRO HM PASSPORT OFFICE","7.71","LAC Transitions Team","9399","Client Allowances","30/11/2017"
"Wolverhampton City Council","http://opendatacommunities.org/id/metropolitan-district-council/wolverhampton","TRAINLINE","-81.00","Safeguarding Admin Resource","4112","Public Transport","30/11/2017"
"Wolverhampton City Council","http://opendatacommunities.org/id/metropolitan-district-council/wolverhampton","TRAINLINE","-17.50","Safeguarding Admin Resource","4112","Public Transport","30/11/2017"
"Wolverhampton City Council","http://opendatacommunities.org/id/metropolitan-district-council/wolverhampton","TRAINLINE","-64.00","Safeguarding Admin Resource","4112","Public Transport","30/11/2017"
"Wolverhampton City Council","http://opendatacommunities.org/id/metropolitan-district-council/wolverhampton","WWW.ARGOS.CO.UK","26.94","CIN/CP Social Work Unit - Area 6","5310","Section 17","30/11/2017"
"Wolverhampton City Council","http://opendatacommunities.org/id/metropolitan-district-council/wolverhampton","POST OFFICE COUNTER","7.25","Adoption and Residence Team & Allowances","9402","Comms - Postage","30/11/2017"
"Wolverhampton City Council","http://opendatacommunities.org/id/metropolitan-district-council/wolverhampton","Virgin Trains","134.50","Risk Management & Insurance","4112","Public Transport","30/11/2017"
"Wolverhampton City Council","http://opendatacommunities.org/id/metropolitan-district-council/wolverhampton","Virgin Trains","212.40","Corporate Procurement Unit","4112","Public Transport","30/11/2017"
"Wolverhampton City Council","http://opendatacommunities.org/id/metropolitan-district-council/wolverhampton","SAINSBURYS SACAT 2040","10.20","Civic Centre Catering","5411","Provisions (Not for resale)","30/11/2017"
"Wolverhampton City Council","http://opendatacommunities.org/id/metropolitan-district-council/wolverhampton","NCE COMPUTER GROUP","165.00","Customer Services","7372","Computing - Purchase of Software","30/11/2017"
"Wolverhampton City Council","http://opendatacommunities.org/id/metropolitan-district-council/wolverhampton","APPLE ONLINE STORE GBP","199.00","Strategic ICTS (ICT Serv Budget)","5732","Equipment - Purchase","29/11/2017"
"Wolverhampton City Council","http://opendatacommunities.org/id/metropolitan-district-council/wolverhampton","APPLE ONLINE STORE GBP","832.50","Strategic ICTS (ICT Serv Budget)","5732","Equipment - Purchase","29/11/2017"
"Wolverhampton City Council","http://opendatacommunities.org/id/metropolitan-district-council/wolverhampton","EBUYER (UK) LTD","837.66","Strategic ICTS (ICT Serv Budget)","5722","Equipment - Purchase","29/11/2017"
"Wolverhampton City Council","http://opendatacommunities.org/id/metropolitan-district-council/wolverhampton","WEST COAST TRAINS","12.00","Managing Director","7523","Car Allowances","29/11/2017"
"Wolverhampton City Council","http://opendatacommunities.org/id/metropolitan-district-council/wolverhampton","INTERPARCEL","57.19","Central Baths","4215","Comms - Postage","29/11/2017"
"Wolverhampton City Council","http://opendatacommunities.org/id/metropolitan-district-council/wolverhampton","ASDA HOME SHOPPING","36.40","Upper Pendeford Farm Childrens Home","5411","Provisions (Not for resale)","29/11/2017"
"Wolverhampton City Council","http://opendatacommunities.org/id/metropolitan-district-council/wolverhampton","W M MORRISONS.COM","85.19","Discretionary Fund","5411","Materials","29/11/2017"
"Wolverhampton City Council","http://opendatacommunities.org/id/metropolitan-district-council/wolverhampton","WWW.CAMBRIDGEASSES","360.00","Work Related Studies","8220","Training Expenses","29/11/2017"
"Wolverhampton City Council","http://opendatacommunities.org/id/metropolitan-district-council/wolverhampton","WWW.CAMBRIDGEASSES","515.00","Service Wide","8220","Training Expenses","29/11/2017"
"Wolverhampton City Council","http://opendatacommunities.org/id/metropolitan-district-council/wolverhampton","AMAZON SVCS EU-UK AMAZ","-16.99","Safeguarding Board - Childrens","5942","Books","29/11/2017"
"Wolverhampton City Council","http://opendatacommunities.org/id/metropolitan-district-council/wolverhampton","NATWEST BANK","110.00","EIP Locality 2","6011","Financial Assistance In Exceptional Circ","29/11/2017"
"Wolverhampton City Council","http://opendatacommunities.org/id/metropolitan-district-council/wolverhampton","PC WORLD ONLINE","129.00","LAC Transitions Team","5732","Equipment - Purchase","29/11/2017"
"Wolverhampton City Council","http://opendatacommunities.org/id/metropolitan-district-council/wolverhampton","ROYAL CARPETS","150.00","LAC Transitions Team","5713","Client Allowances","29/11/2017"
"Wolverhampton City Council","http://opendatacommunities.org/id/metropolitan-district-council/wolverhampton","TESCO STORES 5194","50.65","Towers Outdoor Education Centre","5411","Provisions (Not for resale)","29/11/2017"
"Wolverhampton City Council","http://opendatacommunities.org/id/metropolitan-district-council/wolverhampton","Trainline","6.99","School Improvement","4112","Public Transport","29/11/2017"
"Wolverhampton City Council","http://opendatacommunities.org/id/metropolitan-district-council/wolverhampton","Trainline","19.74","Pupil & Student Support","4112","Public Transport","29/11/2017"
"Wolverhampton City Council","http://opendatacommunities.org/id/metropolitan-district-council/wolverhampton","Trainline","17.70","School Improvement","4112","Public Transport","29/11/2017"
"Wolverhampton City Council","http://opendatacommunities.org/id/metropolitan-district-council/wolverhampton","CARVER/WOLVERHAMPTON/L","48.79","Cleaning of Buildings - General","5211","Materials","29/11/2017"
"Wolverhampton City Council","http://opendatacommunities.org/id/metropolitan-district-council/wolverhampton","Virgin Trains","7.60","Children & Young People Support Costs","4112","Public Transport","29/11/2017"
"Wolverhampton City Council","http://opendatacommunities.org/id/metropolitan-district-council/wolverhampton","AMAZON UK RETAIL AMAZO","205.00","Technical Support","5999","Equipment - Purchase","29/11/2017"
"Wolverhampton City Council","http://opendatacommunities.org/id/metropolitan-district-council/wolverhampton","AMAZON.CO.UK","20.35","Technical Support","5942","Equipment - Purchase","29/11/2017"
"Wolverhampton City Council","http://opendatacommunities.org/id/metropolitan-district-council/wolverhampton","AMAZON.CO.UK","104.95","Technical Support","5942","Equipment - Purchase","29/11/2017"
"Wolverhampton City Council","http://opendatacommunities.org/id/metropolitan-district-council/wolverhampton","HOME BARGAINS","3.33","Ernest Bold Court","5251","Equipment - Purchase","29/11/2017"
"Wolverhampton City Council","http://opendatacommunities.org/id/metropolitan-district-council/wolverhampton","UKOFFICEDIRECT.CO.","57.58","Safeguarding Admin Resource","5943","Stationery","29/11/2017"
"Wolverhampton City Council","http://opendatacommunities.org/id/metropolitan-district-council/wolverhampton","SAINSBURYS (2340)","35.63","Civic Centre Catering","5411","Provisions (Not for resale)","29/11/2017"
"Wolverhampton City Council","http://opendatacommunities.org/id/metropolitan-district-council/wolverhampton","POST OFFICE COUNTER","65.00","CIN/CP Social Work Unit - Area 7","9402","Comms - Postage","29/11/2017"
"Wolverhampton City Council","http://opendatacommunities.org/id/metropolitan-district-council/wolverhampton","NOTEMACHINE","250.00","CIN/CP Social Work Unit - Area 6","6011","Financial Assistance In Exceptional Circ","29/11/2017"
"Wolverhampton City Council","http://opendatacommunities.org/id/metropolitan-district-council/wolverhampton","Trainline","61.71","CIN/CP Social Work Unit - Area 6","4112","Section 17","29/11/2017"
"Wolverhampton City Council","http://opendatacommunities.org/id/metropolitan-district-council/wolverhampton","ASDA SUPERSTORE","34.31","Education And Access","5411","Provisions (Not for resale)","29/11/2017"
"Wolverhampton City Council","http://opendatacommunities.org/id/metropolitan-district-council/wolverhampton","BLOXWICH  SST","7.00","Economic Development","4112","Public Transport","29/11/2017"
"Wolverhampton City Council","http://opendatacommunities.org/id/metropolitan-district-council/wolverhampton","WATERSTONES.COM","429.00","Quality Assurance & Policies","5942","Books","29/11/2017"
"Wolverhampton City Council","http://opendatacommunities.org/id/metropolitan-district-council/wolverhampton","PREMIER INN","50.41","Fostering Team & Allowances","3811","Services - Supplies & Services to users","29/11/2017"
"Wolverhampton City Council","http://opendatacommunities.org/id/metropolitan-district-council/wolverhampton","Amazon UK Marketplace","9.09","Headstart Phase 3","5942","Equipment - Purchase","29/11/2017"
"Wolverhampton City Council","http://opendatacommunities.org/id/metropolitan-district-council/wolverhampton","CUMMINGS BROTHERS LOCK","18.00","Ernest Bold Court","7399","Equipment - Purchase","29/11/2017"
"Wolverhampton City Council","http://opendatacommunities.org/id/metropolitan-district-council/wolverhampton","NOTEMACHINE","200.00","Childrens with Disabilities Team","6011","Financial Assistance In Exceptional Circ","29/11/2017"
"Wolverhampton City Council","http://opendatacommunities.org/id/metropolitan-district-council/wolverhampton","CURRYS ONLINE","108.32","LAC Transitions Team","5732","Client Allowances","29/11/2017"
"Wolverhampton City Council","http://opendatacommunities.org/id/metropolitan-district-council/wolverhampton","DUNELM (SOFT FURNISHIN","29.98","Cemeteries","5714","Equipment - Purchase","29/11/2017"
"Wolverhampton City Council","http://opendatacommunities.org/id/metropolitan-district-council/wolverhampton","LOVE2SHOP.CO.UK","203.50","Healthy Lifestyles Team","8641","Educ Trips, Holidays, Outings, Activity","29/11/2017"
"Wolverhampton City Council","http://opendatacommunities.org/id/metropolitan-district-council/wolverhampton","OYSTER ISSUE WEB","15.00","Legal Services","4112","Public Transport","29/11/2017"
"Wolverhampton City Council","http://opendatacommunities.org/id/metropolitan-district-council/wolverhampton","OYSTER ISSUE WEB","20.00","Legal Services","4112","Public Transport","29/11/2017"
"Wolverhampton City Council","http://opendatacommunities.org/id/metropolitan-district-council/wolverhampton","Trainline","484.19","Legal Services","4112","Public Transport","29/11/2017"
"Wolverhampton City Council","http://opendatacommunities.org/id/metropolitan-district-council/wolverhampton","J VAN VLIET BIRMINGHAM","91.73","Creative Studies Delivery Area","5399","Materials for resale","29/11/2017"
"Wolverhampton City Council","http://opendatacommunities.org/id/metropolitan-district-council/wolverhampton","J VAN VLIET BIRMINGHAM","96.47","Discretionary Fund","5399","Materials","29/11/2017"
"Wolverhampton City Council","http://opendatacommunities.org/id/metropolitan-district-council/wolverhampton","INTELLITEC M V LTD","326.46","Fleet Management","5722","Equipment - Purchase","29/11/2017"
"Wolverhampton City Council","http://opendatacommunities.org/id/metropolitan-district-council/wolverhampton","ENTERPRISE RENT-A-CAR","254.76","CIN/CP Social Work Unit - Area 1","3405","Section 17","29/11/2017"
"Wolverhampton City Council","http://opendatacommunities.org/id/metropolitan-district-council/wolverhampton","AMAZON UK RETAIL AMAZO","44.10","Parks - South West Area Management","5999","Equipment - Purchase","29/11/2017"
"Wolverhampton City Council","http://opendatacommunities.org/id/metropolitan-district-council/wolverhampton","Trainline","18.61","Adoption and Residence Team & Allowances","4112","Public Transport","29/11/2017"
"Wolverhampton City Council","http://opendatacommunities.org/id/metropolitan-district-council/wolverhampton","APPLE ONLINE STORE GBP","1198.00","Customer Services","5732","Equipment - Purchase","29/11/2017"
"Wolverhampton City Council","http://opendatacommunities.org/id/metropolitan-district-council/wolverhampton","Trainline","102.51","SWP - Infrastructure","4112","Public Transport","29/11/2017"
"Wolverhampton City Council","http://opendatacommunities.org/id/metropolitan-district-council/wolverhampton","ITUNES.COM/BILL","0.79","Strategic ICTS (ICT Serv Budget)","5735","Computing - Purchase of Software","29/11/2017"
"Wolverhampton City Council","http://opendatacommunities.org/id/metropolitan-district-council/wolverhampton","Amazon EU","174.16","Headstart - Learning Technologies Team","5969","Equipment - Purchase","28/11/2017"
"Wolverhampton City Council","http://opendatacommunities.org/id/metropolitan-district-council/wolverhampton","BOOKDEPOSITORY.COM","5.49","Headstart Phase 3","5942","Books","28/11/2017"
"Wolverhampton City Council","http://opendatacommunities.org/id/metropolitan-district-council/wolverhampton","DIRECT FLOORING","290.83","LAC Transitions Team","5713","Client Allowances","28/11/2017"
"Wolverhampton City Council","http://opendatacommunities.org/id/metropolitan-district-council/wolverhampton","DIRECT FLOORING","290.83","LAC Transitions Team","5713","Client Allowances","28/11/2017"
"Wolverhampton City Council","http://opendatacommunities.org/id/metropolitan-district-council/wolverhampton","ARGOS LTD","22.98","LAC Transitions Team","5310","Client Allowances","28/11/2017"
"Wolverhampton City Council","http://opendatacommunities.org/id/metropolitan-district-council/wolverhampton","ARGOS LTD","59.99","LAC Transitions Team","5310","Client Allowances","28/11/2017"
"Wolverhampton City Council","http://opendatacommunities.org/id/metropolitan-district-council/wolverhampton","ROYAL CARPETS","312.00","LAC Transitions Team","5713","Client Allowances","28/11/2017"
"Wolverhampton City Council","http://opendatacommunities.org/id/metropolitan-district-council/wolverhampton","CO-OP GROUP 070228","4.78","Towers Outdoor Education Centre","5411","Provisions (Not for resale)","28/11/2017"
"Wolverhampton City Council","http://opendatacommunities.org/id/metropolitan-district-council/wolverhampton","O E METCALFE","279.10","Towers Outdoor Education Centre","5499","Provisions (Not for resale)","28/11/2017"
"Wolverhampton City Council","http://opendatacommunities.org/id/metropolitan-district-council/wolverhampton","WEST COAST TRAINS","5.70","Research & Development","4112","Public Transport","28/11/2017"
"Wolverhampton City Council","http://opendatacommunities.org/id/metropolitan-district-council/wolverhampton","PREMIER INN","67.00","Emergency Duty Team","3811","Services - Supplies & Services to users","28/11/2017"
"Wolverhampton City Council","http://opendatacommunities.org/id/metropolitan-district-council/wolverhampton","B&M RETAIL","136.59","LAC Transitions Team","5310","Client Allowances","28/11/2017"
"Wolverhampton City Council","http://opendatacommunities.org/id/metropolitan-district-council/wolverhampton","B&M RETAIL","182.37","LAC Transitions Team","5310","Client Allowances","28/11/2017"
"Wolverhampton City Council","http://opendatacommunities.org/id/metropolitan-district-council/wolverhampton","B&M RETAIL","183.80","LAC Transitions Team","5310","Client Allowances","28/11/2017"
"Wolverhampton City Council","http://opendatacommunities.org/id/metropolitan-district-council/wolverhampton","ASDA STORES","24.17","LAC Transitions Team","5411","Client Allowances","28/11/2017"
"Wolverhampton City Council","http://opendatacommunities.org/id/metropolitan-district-council/wolverhampton","THE RANGE","9.15","LAC Transitions Team","5311","Client Allowances","28/11/2017"
"Wolverhampton City Council","http://opendatacommunities.org/id/metropolitan-district-council/wolverhampton","THE RANGE","18.78","LAC Transitions Team","5311","Client Allowances","28/11/2017"
"Wolverhampton City Council","http://opendatacommunities.org/id/metropolitan-district-council/wolverhampton","ROYAL CARPETS","125.00","LAC Transitions Team","5713","Client Allowances","28/11/2017"
"Wolverhampton City Council","http://opendatacommunities.org/id/metropolitan-district-council/wolverhampton","HOMEZONE","191.66","LAC Transitions Team","5211","Client Allowances","28/11/2017"
"Wolverhampton City Council","http://opendatacommunities.org/id/metropolitan-district-council/wolverhampton","WWW.WMCA.CO.UK","17.00","Strategic ICTS (ICT Serv Budget)","9399","Public Transport","28/11/2017"
"Wolverhampton City Council","http://opendatacommunities.org/id/metropolitan-district-council/wolverhampton","SAFETYSUPPL","-130.85","Central Baths","5311","Equipment - Purchase","28/11/2017"
"Wolverhampton City Council","http://opendatacommunities.org/id/metropolitan-district-council/wolverhampton","LONDON MIDLAND WEB","105.00","Strategic Director People","4112","Public Transport","28/11/2017"
"Wolverhampton City Council","http://opendatacommunities.org/id/metropolitan-district-council/wolverhampton","POST OFFICE COUNTER","195.00","Vulnerable Young Persons Team","9402","Comms - Postage","28/11/2017"
"Wolverhampton City Council","http://opendatacommunities.org/id/metropolitan-district-council/wolverhampton","Virgintrains.co.uk","-54.30","Planning","4112","Public Transport","28/11/2017"
"Wolverhampton City Council","http://opendatacommunities.org/id/metropolitan-district-council/wolverhampton","THE RANGE","35.06","Ernest Bold Court","5311","Equipment - Purchase","28/11/2017"
"Wolverhampton City Council","http://opendatacommunities.org/id/metropolitan-district-council/wolverhampton","REDWINGS LODGE","59.95","CIN/CP Social Work Unit - Area 1","7011","Section 17","28/11/2017"
"Wolverhampton City Council","http://opendatacommunities.org/id/metropolitan-district-council/wolverhampton","REDWINGS LODGE","5.99","CIN/CP Social Work Unit - Area 1","7011","Section 17","28/11/2017"
"Wolverhampton City Council","http://opendatacommunities.org/id/metropolitan-district-council/wolverhampton","CUMMINGS BROTHERS LOCK","33.60","EIP Locality 7","7399","Equipment - Purchase","28/11/2017"
"Wolverhampton City Council","http://opendatacommunities.org/id/metropolitan-district-council/wolverhampton","WCC MOTO PAYMENTS","26.00","LAC Transitions Team","9399","Client Allowances","28/11/2017"
"Wolverhampton City Council","http://opendatacommunities.org/id/metropolitan-district-council/wolverhampton","WWW.PROVAC.CO.UK","29.96","Blakenhall Commty & Healthy Living Ctr","2842","Cleaning Supplies and Materials","28/11/2017"
"Wolverhampton City Council","http://opendatacommunities.org/id/metropolitan-district-council/wolverhampton","AMAZON UK RETAIL AMAZO","233.97","Technical Support","5999","Equipment - Purchase","28/11/2017"
"Wolverhampton City Council","http://opendatacommunities.org/id/metropolitan-district-council/wolverhampton","AMAZON.CO.UK","149.85","Technical Support","5942","Books","28/11/2017"
"Wolverhampton City Council","http://opendatacommunities.org/id/metropolitan-district-council/wolverhampton","Wix.com","93.13","Technical Support","5817","Computing - Purchase of Software","28/11/2017"
"Wolverhampton City Council","http://opendatacommunities.org/id/metropolitan-district-council/wolverhampton","Wix.com","93.13","Technical Support","5817","Subscriptions","28/11/2017"
"Wolverhampton City Council","http://opendatacommunities.org/id/metropolitan-district-council/wolverhampton","ASDA HOME SHOPPING","74.86","Ernest Bold Court","5411","Provisions (Not for resale)","28/11/2017"
"Wolverhampton City Council","http://opendatacommunities.org/id/metropolitan-district-council/wolverhampton","PAYPAL  RTPI","35.00","Central Training","8398","Training Expenses","28/11/2017"
"Wolverhampton City Council","http://opendatacommunities.org/id/metropolitan-district-council/wolverhampton","AMAZON SVCS EU-UK AMAZ","34.95","EIP Locality 2","5942","Equipment - Purchase","27/11/2017"
"Wolverhampton City Council","http://opendatacommunities.org/id/metropolitan-district-council/wolverhampton","WWW.ARGOS.CO.UK","31.94","CIN/CP Social Work Unit - Area 6","5310","Section 17","27/11/2017"
"Wolverhampton City Council","http://opendatacommunities.org/id/metropolitan-district-council/wolverhampton","TRAINLINE","-59.00","CIN/CP Social Work Unit - Area 6","4112","Public Transport","27/11/2017"
"Wolverhampton City Council","http://opendatacommunities.org/id/metropolitan-district-council/wolverhampton","THE NEW BRIDGE GUEST H","175.00","Emergency Duty Team","7011","Services - Supplies & Services to users","27/11/2017"
"Wolverhampton City Council","http://opendatacommunities.org/id/metropolitan-district-council/wolverhampton","PURE360","224.00","Audience Development","7372","Marketing \ Non-staff advertising","27/11/2017"
"Wolverhampton City Council","http://opendatacommunities.org/id/metropolitan-district-council/wolverhampton","Trainline","43.35","CIN/CP Social Work Unit - Area 6","4112","Public Transport","27/11/2017"
"Wolverhampton City Council","http://opendatacommunities.org/id/metropolitan-district-council/wolverhampton","AMAZON.CO.UK","31.23","Headstart - Learning Technologies Team","5942","Books","27/11/2017"
"Wolverhampton City Council","http://opendatacommunities.org/id/metropolitan-district-council/wolverhampton","Amazon UK Marketplace","42.48","Headstart - Learning Technologies Team","5942","Books","27/11/2017"
"Wolverhampton City Council","http://opendatacommunities.org/id/metropolitan-district-council/wolverhampton","WORLDBOOKSL","2.80","Headstart Phase 3","5942","Books","27/11/2017"
"Wolverhampton City Council","http://opendatacommunities.org/id/metropolitan-district-council/wolverhampton","SKR ABEBOOKS 46YJZV","31.83","Headstart Phase 3","5942","Books","27/11/2017"
"Wolverhampton City Council","http://opendatacommunities.org/id/metropolitan-district-council/wolverhampton","WWW.STUFF-UK.NET","21.72","Headstart Phase 3","7372","Stationery","27/11/2017"
"Wolverhampton City Council","http://opendatacommunities.org/id/metropolitan-district-council/wolverhampton","WORDERY","10.87","Headstart Phase 3","5942","Books","27/11/2017"
"Wolverhampton City Council","http://opendatacommunities.org/id/metropolitan-district-council/wolverhampton","BOOKDEPOSITORY.COM","61.94","Headstart Phase 3","5942","Books","27/11/2017"
"Wolverhampton City Council","http://opendatacommunities.org/id/metropolitan-district-council/wolverhampton","SHELL & WAITROSE","2.50","Mayoral Expenses","5541","Vehicle Maintenance - Repairs","27/11/2017"
"Wolverhampton City Council","http://opendatacommunities.org/id/metropolitan-district-council/wolverhampton","SAINSBURYS LOC4471","7.16","Mayoral Expenses","5411","Provisions (Not for resale)","27/11/2017"
"Wolverhampton City Council","http://opendatacommunities.org/id/metropolitan-district-council/wolverhampton","RAMADA INNS","-150.00","Emergency Duty Team","3637","Accommodation Costs","27/11/2017"
"Wolverhampton City Council","http://opendatacommunities.org/id/metropolitan-district-council/wolverhampton","RAMADA INNS","150.00","Emergency Duty Team","3637","Conference Expenses","27/11/2017"
"Wolverhampton City Council","http://opendatacommunities.org/id/metropolitan-district-council/wolverhampton","AMAZON.CO.UK","49.32","Headstart - Learning Technologies Team","5942","Books","27/11/2017"
"Wolverhampton City Council","http://opendatacommunities.org/id/metropolitan-district-council/wolverhampton","B&M RETAIL","27.47","LAC Transitions Team","5310","Client Allowances","27/11/2017"
"Wolverhampton City Council","http://opendatacommunities.org/id/metropolitan-district-council/wolverhampton","Virgin Trains","58.50","Adoption and Residence Team & Allowances","4112","Public Transport","27/11/2017"
"Wolverhampton City Council","http://opendatacommunities.org/id/metropolitan-district-council/wolverhampton","SPORTSDIRECT.COM","116.95","LAC Transitions Team","5941","Client Allowances","27/11/2017"
"Wolverhampton City Council","http://opendatacommunities.org/id/metropolitan-district-council/wolverhampton","WWW.ARGOS.CO.UK","23.93","LAC Transitions Team","5310","Equipment - Purchase","27/11/2017"
"Wolverhampton City Council","http://opendatacommunities.org/id/metropolitan-district-council/wolverhampton","ASDA HOME SHOPPING","2.50","Upper Pendeford Farm Childrens Home","5411","Provisions (Not for resale)","27/11/2017"
"Wolverhampton City Council","http://opendatacommunities.org/id/metropolitan-district-council/wolverhampton","WWW.PRESTIGEFLOWERS.CO","26.29","Upper Pendeford Farm Childrens Home","5193","Provisions (Not for resale)","27/11/2017"
"Wolverhampton City Council","http://opendatacommunities.org/id/metropolitan-district-council/wolverhampton","AMAZON UK RETAIL AMAZO","16.29","Foundation Studies","5999","Equipment - Purchase","27/11/2017"
"Wolverhampton City Council","http://opendatacommunities.org/id/metropolitan-district-council/wolverhampton","WWWLESARCOUK","34.50","Service Wide","5734","Equipment - Purchase","27/11/2017"
"Wolverhampton City Council","http://opendatacommunities.org/id/metropolitan-district-council/wolverhampton","STORY BLOCKS 844-835-2","76.75","Headstart Phase 3","7333","Subscriptions","27/11/2017"
"Wolverhampton City Council","http://opendatacommunities.org/id/metropolitan-district-council/wolverhampton","Trainline","75.28","Director of Education","4112","Public Transport","27/11/2017"
"Wolverhampton City Council","http://opendatacommunities.org/id/metropolitan-district-council/wolverhampton","PREMIER INN","142.50","Hostels / Outreach","3811","Services - Supplies & Services to users","27/11/2017"
"Wolverhampton City Council","http://opendatacommunities.org/id/metropolitan-district-council/wolverhampton","COUNTY HOTEL - THE","100.00","Homeless Families","7011","Accommodation Costs","27/11/2017"
"Wolverhampton City Council","http://opendatacommunities.org/id/metropolitan-district-council/wolverhampton","PREMIER INN","218.33","Homeless Families","3811","Accommodation Costs","27/11/2017"
"Wolverhampton City Council","http://opendatacommunities.org/id/metropolitan-district-council/wolverhampton","AMAZON.CO.UK","26.49","SEN Sensory Inclusion","5942","Equipment - Purchase","27/11/2017"
"Wolverhampton City Council","http://opendatacommunities.org/id/metropolitan-district-council/wolverhampton","AMAZON SVCS EU-UK AMAZ","39.95","SEN Sensory Inclusion","5942","Equipment - Purchase","27/11/2017"
"Wolverhampton City Council","http://opendatacommunities.org/id/metropolitan-district-council/wolverhampton","RAPID ELECTRONICS","12.13","Education And Access","5732","Equipment - Purchase","27/11/2017"
"Wolverhampton City Council","http://opendatacommunities.org/id/metropolitan-district-council/wolverhampton","Trainline","88.23","Education Catering - General Overheads","4112","Public Transport","27/11/2017"
"Wolverhampton City Council","http://opendatacommunities.org/id/metropolitan-district-council/wolverhampton","Amazon EU","697.68","Technical Support","5969","Equipment - Purchase","27/11/2017"
"Wolverhampton City Council","http://opendatacommunities.org/id/metropolitan-district-council/wolverhampton","AMAZON UK RETAIL AMAZO","299.97","Technical Support","5999","Equipment - Purchase","27/11/2017"
"Wolverhampton City Council","http://opendatacommunities.org/id/metropolitan-district-council/wolverhampton","AMAZON UK RETAIL AMAZO","179.98","Technical Support","5999","Equipment - Purchase","27/11/2017"
"Wolverhampton City Council","http://opendatacommunities.org/id/metropolitan-district-council/wolverhampton","AMAZON SVCS EU-UK AMAZ","21.64","Technical Support","5942","Books","27/11/2017"
"Wolverhampton City Council","http://opendatacommunities.org/id/metropolitan-district-council/wolverhampton","WOWCHER","19.00","Technical Support","7299","Services - Supplies & Services to users","27/11/2017"
"Wolverhampton City Council","http://opendatacommunities.org/id/metropolitan-district-council/wolverhampton","AMAZON SVCS EU-UK AMAZ","11.92","Global Budgets","5942","Books","27/11/2017"
"Wolverhampton City Council","http://opendatacommunities.org/id/metropolitan-district-council/wolverhampton","LUL TICKET MACHINE","12.30","Education And Access","4112","Public Transport","27/11/2017"
"Wolverhampton City Council","http://opendatacommunities.org/id/metropolitan-district-council/wolverhampton","Virgin Trains","182.00","Education And Access","4112","Public Transport","27/11/2017"
"Wolverhampton City Council","http://opendatacommunities.org/id/metropolitan-district-council/wolverhampton","NOMAD WEST COAST L","4.17","Education And Access","4816","Computing - Purchase of Software","27/11/2017"
"Wolverhampton City Council","http://opendatacommunities.org/id/metropolitan-district-council/wolverhampton","ASDA HOME SHOPPING","65.65","Ernest Bold Court","5411","Provisions (Not for resale)","27/11/2017"
"Wolverhampton City Council","http://opendatacommunities.org/id/metropolitan-district-council/wolverhampton","PAYPAL  RTPI","35.00","Central Training","8398","Training Expenses","27/11/2017"
"Wolverhampton City Council","http://opendatacommunities.org/id/metropolitan-district-council/wolverhampton","UK DEED POLL SERVICE L","40.00","LAC Transitions Team","7299","Client Allowances","27/11/2017"
"Wolverhampton City Council","http://opendatacommunities.org/id/metropolitan-district-council/wolverhampton","WWW.ARGOS.CO.UK","214.93","EIP Locality 7","5310","Grant Payments","27/11/2017"
"Wolverhampton City Council","http://opendatacommunities.org/id/metropolitan-district-council/wolverhampton","123 REG R/T","23.98","Customer Services","5968","Subscriptions","27/11/2017"
"Wolverhampton City Council","http://opendatacommunities.org/id/metropolitan-district-council/wolverhampton","TIMPSON LTD","15.00","Customer Services","7251","Fixtures and Fittings - R&M","27/11/2017"
"Wolverhampton City Council","http://opendatacommunities.org/id/metropolitan-district-council/wolverhampton","Virgintrains.co.uk","-44.30","Planning","4112","Public Transport","27/11/2017"
"Wolverhampton City Council","http://opendatacommunities.org/id/metropolitan-district-council/wolverhampton","AMZ The Prime Group","-14.87","Northicote Farm","5999","Clothing / Uniforms","27/11/2017"
"Wolverhampton City Council","http://opendatacommunities.org/id/metropolitan-district-council/wolverhampton","AMAZON SVCS EU-UK AMAZ","97.86","EIP Locality 2","5942","Equipment - Purchase","24/11/2017"
"Wolverhampton City Council","http://opendatacommunities.org/id/metropolitan-district-council/wolverhampton","Trainline","61.71","CIN/CP Social Work Unit - Area 6","4112","Section 17","24/11/2017"
"Wolverhampton City Council","http://opendatacommunities.org/id/metropolitan-district-council/wolverhampton","FUEL CARD SERVICES LTD","133.80","Towers Outdoor Education Centre","7399","Petrol","24/11/2017"
"Wolverhampton City Council","http://opendatacommunities.org/id/metropolitan-district-council/wolverhampton","AMAZON EU AMAZON.CO.UK","2.71","Arbor Scheme","5999","Stationery","24/11/2017"
"Wolverhampton City Council","http://opendatacommunities.org/id/metropolitan-district-council/wolverhampton","PREMIER INN","208.30","Adoption and Residence Team & Allowances","3811","Accommodation Costs","24/11/2017"
"Wolverhampton City Council","http://opendatacommunities.org/id/metropolitan-district-council/wolverhampton","PREMIER INN","347.46","Adoption and Residence Team & Allowances","3811","Accommodation Costs","24/11/2017"
"Wolverhampton City Council","http://opendatacommunities.org/id/metropolitan-district-council/wolverhampton","J J RUDELL & CO LT","150.00","Mayoral Expenses","5944","Gratuities","24/11/2017"
"Wolverhampton City Council","http://opendatacommunities.org/id/metropolitan-district-council/wolverhampton","SAFETYSUPPL","130.85","Central Baths","5311","Equipment - Purchase","24/11/2017"
"Wolverhampton City Council","http://opendatacommunities.org/id/metropolitan-district-council/wolverhampton","SAINSBURYS (2340)","7.00","Discretionary Fund","5411","Provisions (Not for resale)","24/11/2017"
"Wolverhampton City Council","http://opendatacommunities.org/id/metropolitan-district-council/wolverhampton","AMAZON SVCS EU-UK AMAZ","48.82","Service Wide","5942","Equipment - Purchase","24/11/2017"
"Wolverhampton City Council","http://opendatacommunities.org/id/metropolitan-district-council/wolverhampton","THE POST OFFICE","2.90","Art Gallery Shop","9402","Comms - Postage","24/11/2017"
"Wolverhampton City Council","http://opendatacommunities.org/id/metropolitan-district-council/wolverhampton","AMAZON SVCS EU-UK AMAZ","105.00","Technical Support","5942","Books","24/11/2017"
"Wolverhampton City Council","http://opendatacommunities.org/id/metropolitan-district-council/wolverhampton","WIX.COM","46.57","Technical Support","5968","Subscriptions","24/11/2017"
"Wolverhampton City Council","http://opendatacommunities.org/id/metropolitan-district-council/wolverhampton","Wix.com","46.57","Technical Support","5817","Computing - Purchase of Software","24/11/2017"
"Wolverhampton City Council","http://opendatacommunities.org/id/metropolitan-district-council/wolverhampton","B & Q 1243","80.82","Learning Disabilities Management","5211","Equipment - R & M","24/11/2017"
"Wolverhampton City Council","http://opendatacommunities.org/id/metropolitan-district-council/wolverhampton","PAYPAL  NEEDFLYERS","190.00","Education And Access","7311","Equipment - Purchase","24/11/2017"
"Wolverhampton City Council","http://opendatacommunities.org/id/metropolitan-district-council/wolverhampton","J VAN VLIET BIRMINGHAM","101.35","Creative Studies Delivery Area","5399","Materials for resale","24/11/2017"
"Wolverhampton City Council","http://opendatacommunities.org/id/metropolitan-district-council/wolverhampton","WWW.LOCAL.GOV.UK","-414.00","School Improvement","7399","Equipment - Purchase","24/11/2017"
"Wolverhampton City Council","http://opendatacommunities.org/id/metropolitan-district-council/wolverhampton","AMAZON EU AMAZON.CO.UK","21.67","Arbor Scheme","5999","Stationery","24/11/2017"
"Wolverhampton City Council","http://opendatacommunities.org/id/metropolitan-district-council/wolverhampton","STERMAT CAR AND VA","211.20","Towers Outdoor Education Centre","5541","Hire of Vehicles","24/11/2017"
"Wolverhampton City Council","http://opendatacommunities.org/id/metropolitan-district-council/wolverhampton","TRAINLINE","-74.20","GEN Y City Transnational","4112","Public Transport","24/11/2017"
"Wolverhampton City Council","http://opendatacommunities.org/id/metropolitan-district-council/wolverhampton","SNAP    GEOFILTERS","3.80","Communications & Marketing - General","7311","Marketing \ Non-staff advertising","24/11/2017"
"Wolverhampton City Council","http://opendatacommunities.org/id/metropolitan-district-council/wolverhampton","NATIONWIDE","250.00","Headstart - Young People Engagement","6011","Financial Assistance In Exceptional Circ","24/11/2017"
"Wolverhampton City Council","http://opendatacommunities.org/id/metropolitan-district-council/wolverhampton","SAINSBURYS PFS (1340)","1.67","Mayoral Expenses","5541","Vehicle Maintenance - Repairs","24/11/2017"
"Wolverhampton City Council","http://opendatacommunities.org/id/metropolitan-district-council/wolverhampton","WWW.ARGOS.CO.UK","266.99","LAC Transitions Team","5310","Client Allowances","24/11/2017"
"Wolverhampton City Council","http://opendatacommunities.org/id/metropolitan-district-council/wolverhampton","B&M RETAIL","199.05","LAC Transitions Team","5310","Client Allowances","24/11/2017"
"Wolverhampton City Council","http://opendatacommunities.org/id/metropolitan-district-council/wolverhampton","B&M RETAIL LTD","9.97","Cemeteries","5310","Equipment - Purchase","24/11/2017"
"Wolverhampton City Council","http://opendatacommunities.org/id/metropolitan-district-council/wolverhampton","HOME BARGAINS","57.52","Cemeteries","5251","Equipment - Purchase","24/11/2017"
"Wolverhampton City Council","http://opendatacommunities.org/id/metropolitan-district-council/wolverhampton","ARGOS LTD","116.65","Cemeteries","5310","Equipment - Purchase","24/11/2017"
"Wolverhampton City Council","http://opendatacommunities.org/id/metropolitan-district-council/wolverhampton","BOOTS - 6564","16.62","Cemeteries","5912","Toilet Requisites","24/11/2017"
"Wolverhampton City Council","http://opendatacommunities.org/id/metropolitan-district-council/wolverhampton","WWW.BAX-SHOP.CO.UK","390.79","MAST 8 - Wednesfield","5732","Computing - Purchase of Hardware","24/11/2017"
"Wolverhampton City Council","http://opendatacommunities.org/id/metropolitan-district-council/wolverhampton","Amazon UK Marketplace","357.19","MAST 8 - Wednesfield","5942","Computing - Purchase of Hardware","24/11/2017"
"Wolverhampton City Council","http://opendatacommunities.org/id/metropolitan-district-council/wolverhampton","AMAZON SVCS EU-UK AMAZ","7.54","Global Budgets","5942","Books","23/11/2017"
"Wolverhampton City Council","http://opendatacommunities.org/id/metropolitan-district-council/wolverhampton","Amazon UK Marketplace","11.71","Global Budgets","5942","Books","23/11/2017"
"Wolverhampton City Council","http://opendatacommunities.org/id/metropolitan-district-council/wolverhampton","WICKES","6.40","Duke Street Bungalows","5211","Equipment - R & M","23/11/2017"
"Wolverhampton City Council","http://opendatacommunities.org/id/metropolitan-district-council/wolverhampton","W M MORRISON PLC","31.54","Ernest Bold Court","5411","Provisions (Not for resale)","23/11/2017"
"Wolverhampton City Council","http://opendatacommunities.org/id/metropolitan-district-council/wolverhampton","SCREWFIX DIRECT","24.99","Play General","5211","Materials","23/11/2017"
"Wolverhampton City Council","http://opendatacommunities.org/id/metropolitan-district-council/wolverhampton","SEVERN TRENT WATER","24.53","CIN/CP Social Work Unit - Area 4","4900","No Recourse to Public Funds","23/11/2017"
"Wolverhampton City Council","http://opendatacommunities.org/id/metropolitan-district-council/wolverhampton","LOYD WEDNESFIELD WOLVE","250.00","Duke Street Bungalows","6011","Provisions (Not for resale)","23/11/2017"
"Wolverhampton City Council","http://opendatacommunities.org/id/metropolitan-district-council/wolverhampton","Trainline","91.03","Adoption and Residence Team & Allowances","4112","Public Transport","23/11/2017"
"Wolverhampton City Council","http://opendatacommunities.org/id/metropolitan-district-council/wolverhampton","BUXTONS LTD","117.62","Northicote Farm","5193","Equipment - R & M","23/11/2017"
"Wolverhampton City Council","http://opendatacommunities.org/id/metropolitan-district-council/wolverhampton","EDMUNDSON ELECTRICAL L","95.25","Northicote Farm","5065","Equipment - R & M","23/11/2017"
"Wolverhampton City Council","http://opendatacommunities.org/id/metropolitan-district-council/wolverhampton","CARVER/WOLVERHAMPTON/L","72.63","Northicote Farm","5211","Equipment - R & M","23/11/2017"
"Wolverhampton City Council","http://opendatacommunities.org/id/metropolitan-district-council/wolverhampton","CARVER/WOLVERHAMPTON/L","35.37","Northicote Farm","5211","Equipment - R & M","23/11/2017"
"Wolverhampton City Council","http://opendatacommunities.org/id/metropolitan-district-council/wolverhampton","WM MORRISON 024","24.56","EIP Locality 2","5411","Provisions (Not for resale)","23/11/2017"
"Wolverhampton City Council","http://opendatacommunities.org/id/metropolitan-district-council/wolverhampton","WILKO.COM","97.75","LAC Transitions Team","5722","Client Allowances","23/11/2017"
"Wolverhampton City Council","http://opendatacommunities.org/id/metropolitan-district-council/wolverhampton","ARGOS RETAIL GROUP","143.59","LAC Transitions Team","5310","Client Allowances","23/11/2017"
"Wolverhampton City Council","http://opendatacommunities.org/id/metropolitan-district-council/wolverhampton","Virgin Trains","142.50","LAC Transitions Team","4112","Public Transport","23/11/2017"
"Wolverhampton City Council","http://opendatacommunities.org/id/metropolitan-district-council/wolverhampton","WEST COAST TRAINS","37.10","Research & Development","4112","Public Transport","23/11/2017"
"Wolverhampton City Council","http://opendatacommunities.org/id/metropolitan-district-council/wolverhampton","Trainline","79.05","GEN Y City Transnational","4112","Public Transport","23/11/2017"
"Wolverhampton City Council","http://opendatacommunities.org/id/metropolitan-district-council/wolverhampton","NOTEMACHINE","200.00","Headstart Phase 3","6011","Financial Assistance In Exceptional Circ","23/11/2017"
"Wolverhampton City Council","http://opendatacommunities.org/id/metropolitan-district-council/wolverhampton","Amazon UK Marketplace","11.21","Headstart Hubs","5942","Equipment - Purchase","23/11/2017"
"Wolverhampton City Council","http://opendatacommunities.org/id/metropolitan-district-council/wolverhampton","Amazon UK Marketplace","11.85","Headstart Hubs","5942","Equipment - Purchase","23/11/2017"
"Wolverhampton City Council","http://opendatacommunities.org/id/metropolitan-district-council/wolverhampton","REGISTRARS OFFICE","30.00","IMPACT","8299","Training Expenses","23/11/2017"
"Wolverhampton City Council","http://opendatacommunities.org/id/metropolitan-district-council/wolverhampton","WOLVERHAMPTON CC","4.58","IMPACT","7523","Car Allowances","23/11/2017"
"Wolverhampton City Council","http://opendatacommunities.org/id/metropolitan-district-council/wolverhampton","SAINSBURYS PFS (1340)","1.67","Mayoral Expenses","5541","Vehicle Maintenance - Repairs","23/11/2017"
"Wolverhampton City Council","http://opendatacommunities.org/id/metropolitan-district-council/wolverhampton","MARS DRINKS UK","178.16","Admin & Support","5441","Catering","23/11/2017"
"Wolverhampton City Council","http://opendatacommunities.org/id/metropolitan-district-council/wolverhampton","J VAN VLIET BIRMINGHAM","23.95","Admin & Support","5399","Equipment - Purchase","23/11/2017"
"Wolverhampton City Council","http://opendatacommunities.org/id/metropolitan-district-council/wolverhampton","WEST MID TRAVEL","231.50","Youth Offending Team","4131","Public Transport","23/11/2017"
"Wolverhampton City Council","http://opendatacommunities.org/id/metropolitan-district-council/wolverhampton","CROWN PROPERTY SERVICE","400.00","CIN/CP Social Work Unit - Area 3","7011","Section 17","23/11/2017"
"Wolverhampton City Council","http://opendatacommunities.org/id/metropolitan-district-council/wolverhampton","ASDA HOME SHOPPING","-3.69","Upper Pendeford Farm Childrens Home","5411","Provisions (Not for resale)","23/11/2017"
"Wolverhampton City Council","http://opendatacommunities.org/id/metropolitan-district-council/wolverhampton","ASDA HOME SHOPPING","-0.89","Upper Pendeford Farm Childrens Home","5411","Provisions (Not for resale)","23/11/2017"
"Wolverhampton City Council","http://opendatacommunities.org/id/metropolitan-district-council/wolverhampton","ASDA HOME SHOPPING","161.64","Upper Pendeford Farm Childrens Home","5411","Provisions (Not for resale)","23/11/2017"
"Wolverhampton City Council","http://opendatacommunities.org/id/metropolitan-district-council/wolverhampton","LIDL UK","60.69","Discretionary Fund","5411","Materials","23/11/2017"
"Wolverhampton City Council","http://opendatacommunities.org/id/metropolitan-district-council/wolverhampton","WWW.ARGOS.CO.UK","63.94","Creative Studies Delivery Area","5310","Equipment - Purchase","23/11/2017"
"Wolverhampton City Council","http://opendatacommunities.org/id/metropolitan-district-council/wolverhampton","WWW.JUSTGLOVES.CO.UK","84.00","Creative Studies Delivery Area","5999","Equipment - Purchase","23/11/2017"
"Wolverhampton City Council","http://opendatacommunities.org/id/metropolitan-district-council/wolverhampton","WOLVERHAMPTON GRAND TH","51.00","Ernest Bold Court","7922","Educ Trips, Holidays, Outings, Activity","23/11/2017"
"Wolverhampton City Council","http://opendatacommunities.org/id/metropolitan-district-council/wolverhampton","COUNTY HOTEL - THE","50.00","Homeless Families","7011","Accommodation Costs","23/11/2017"
"Wolverhampton City Council","http://opendatacommunities.org/id/metropolitan-district-council/wolverhampton","FINESSE CARPETS LTD","250.00","EIP Locality 1","5713","Grant Payments","23/11/2017"
"Wolverhampton City Council","http://opendatacommunities.org/id/metropolitan-district-council/wolverhampton","ARGOS RETAIL GROUP","29.99","EIP Locality 1","5310","Equipment - Purchase","23/11/2017"
"Wolverhampton City Council","http://opendatacommunities.org/id/metropolitan-district-council/wolverhampton","SKR AbeBooks 4675QO","13.97","Research & Development","5942","Books","23/11/2017"
"Wolverhampton City Council","http://opendatacommunities.org/id/metropolitan-district-council/wolverhampton","SKR AbeBooks 4675QN","15.95","Research & Development","5942","Books","23/11/2017"
"Wolverhampton City Council","http://opendatacommunities.org/id/metropolitan-district-council/wolverhampton","AMAZON EU AMAZON.CO.UK","80.39","Technical Support","5999","Equipment - Purchase","23/11/2017"
"Wolverhampton City Council","http://opendatacommunities.org/id/metropolitan-district-council/wolverhampton","AMAZON UK PRIME AMZN.C","7.99","Technical Support","5968","Subscriptions","23/11/2017"
"Wolverhampton City Council","http://opendatacommunities.org/id/metropolitan-district-council/wolverhampton","AMAZON EU AMAZON.CO.UK","14.16","Headstart Hubs","5999","Equipment - Purchase","22/11/2017"
"Wolverhampton City Council","http://opendatacommunities.org/id/metropolitan-district-council/wolverhampton","AMAZON EU AMAZON.CO.UK","14.16","Headstart Hubs","5999","Equipment - Purchase","22/11/2017"
"Wolverhampton City Council","http://opendatacommunities.org/id/metropolitan-district-council/wolverhampton","AMAZON EU AMAZON.CO.UK","6.20","Headstart Hubs","5999","Equipment - Purchase","22/11/2017"
"Wolverhampton City Council","http://opendatacommunities.org/id/metropolitan-district-council/wolverhampton","AMAZON EU AMAZON.CO.UK","14.16","Headstart Hubs","5999","Equipment - Purchase","22/11/2017"
"Wolverhampton City Council","http://opendatacommunities.org/id/metropolitan-district-council/wolverhampton","AMAZON EU AMAZON.CO.UK","14.16","Headstart Hubs","5999","Equipment - Purchase","22/11/2017"
"Wolverhampton City Council","http://opendatacommunities.org/id/metropolitan-district-council/wolverhampton","Amazon UK Marketplace","5.07","Headstart Hubs","5942","Equipment - Purchase","22/11/2017"
"Wolverhampton City Council","http://opendatacommunities.org/id/metropolitan-district-council/wolverhampton","WWW.WMCA.CO.UK","54.50","IMPACT","9399","Services - Fees and Charges","22/11/2017"
"Wolverhampton City Council","http://opendatacommunities.org/id/metropolitan-district-council/wolverhampton","POST OFFICE COUNTER","26.60","Central Baths","9402","Comms - Postage","22/11/2017"
"Wolverhampton City Council","http://opendatacommunities.org/id/metropolitan-district-council/wolverhampton","WWW.CARESHOP.CO.UK","85.02","Ernest Bold Court","5999","Equipment - Purchase","22/11/2017"
"Wolverhampton City Council","http://opendatacommunities.org/id/metropolitan-district-council/wolverhampton","BLOOMS MENSWEAR","72.50","Mayoral Expenses","5611","Clothing / Uniforms","22/11/2017"
"Wolverhampton City Council","http://opendatacommunities.org/id/metropolitan-district-council/wolverhampton","POST OFFICE COUNTER","121.00","Macmillan Welfare Rights","9402","Comms - Postage","22/11/2017"
"Wolverhampton City Council","http://opendatacommunities.org/id/metropolitan-district-council/wolverhampton","AMAZON SVCS EU-UK AMAZ","26.50","EIP Locality 8","5942","Equipment - Hire","22/11/2017"
"Wolverhampton City Council","http://opendatacommunities.org/id/metropolitan-district-council/wolverhampton","LOYD WEDNESFIELD WOLVE","150.00","EIP Locality 8","6011","Grant Payments","22/11/2017"
"Wolverhampton City Council","http://opendatacommunities.org/id/metropolitan-district-council/wolverhampton","CUMMINGS BROTHERS LOCK","26.67","Public Conveniences","7399","Equipment - Purchase","22/11/2017"
"Wolverhampton City Council","http://opendatacommunities.org/id/metropolitan-district-council/wolverhampton","AMFBOWLING.CO.UK","16.17","CIN/CP Social Work Unit - Area 3","7933","Section 17","22/11/2017"
"Wolverhampton City Council","http://opendatacommunities.org/id/metropolitan-district-council/wolverhampton","B&M RETAIL","8.32","LAC Transitions Team","5310","Client Allowances","22/11/2017"
"Wolverhampton City Council","http://opendatacommunities.org/id/metropolitan-district-council/wolverhampton","HOBBY CRAFT LTD","15.00","Ernest Bold Court","5970","Educ Trips, Holidays, Outings, Activity","22/11/2017"
"Wolverhampton City Council","http://opendatacommunities.org/id/metropolitan-district-council/wolverhampton","REGISTRARS OFFICE","30.00","CIN/CP Social Work Unit - Area 7","8299","Section 17","22/11/2017"
"Wolverhampton City Council","http://opendatacommunities.org/id/metropolitan-district-council/wolverhampton","Trainline","97.00","CIN/CP Social Work Unit - Area 8","4112","Public Transport","22/11/2017"
"Wolverhampton City Council","http://opendatacommunities.org/id/metropolitan-district-council/wolverhampton","ROYAL CARPETS","150.00","LAC Transitions Team","5713","Client Allowances","22/11/2017"
"Wolverhampton City Council","http://opendatacommunities.org/id/metropolitan-district-council/wolverhampton","TESCO STORES 5194","137.95","Towers Outdoor Education Centre","5411","Provisions (Not for resale)","22/11/2017"
"Wolverhampton City Council","http://opendatacommunities.org/id/metropolitan-district-council/wolverhampton","NORTHERN POTTERY LTD","38.08","Towers Outdoor Education Centre","5999","Fixtures and Fittings - Purchases","22/11/2017"
"Wolverhampton City Council","http://opendatacommunities.org/id/metropolitan-district-council/wolverhampton","COTSWOLD OUTDOOR TENT","4.67","Towers Outdoor Education Centre","5691","Equipment - Purchase","22/11/2017"
"Wolverhampton City Council","http://opendatacommunities.org/id/metropolitan-district-council/wolverhampton","BARCLAYS BANK PLC","250.00","CIN/CP Social Work Unit - Area 6","6011","Financial Assistance In Exceptional Circ","22/11/2017"
"Wolverhampton City Council","http://opendatacommunities.org/id/metropolitan-district-council/wolverhampton","C I H","700.00","LAC Transitions Team","8641","Client Allowances","22/11/2017"
"Wolverhampton City Council","http://opendatacommunities.org/id/metropolitan-district-council/wolverhampton","SAINSBURYS 2040","26.45","Duke Street Bungalows","5411","Equipment - Purchase","22/11/2017"
"Wolverhampton City Council","http://opendatacommunities.org/id/metropolitan-district-council/wolverhampton","Trainline","16.27","SEN Special Education Admin","4112","Public Transport","22/11/2017"
"Wolverhampton City Council","http://opendatacommunities.org/id/metropolitan-district-council/wolverhampton","WIX.COM","93.13","Technical Support","5817","Computing - Purchase of Software","22/11/2017"
"Wolverhampton City Council","http://opendatacommunities.org/id/metropolitan-district-council/wolverhampton","COMPANY CARDS LTD","33.50","Technical Support","2741","Publications","22/11/2017"
"Wolverhampton City Council","http://opendatacommunities.org/id/metropolitan-district-council/wolverhampton","PO LOW HILL 1592","200.00","EIP Locality 7","6011","Grant Payments","22/11/2017"
"Wolverhampton City Council","http://opendatacommunities.org/id/metropolitan-district-council/wolverhampton","NCE COMPUTER GROUP","189.00","Customer Services","7372","Computing - Purchase of Software","22/11/2017"
"Wolverhampton City Council","http://opendatacommunities.org/id/metropolitan-district-council/wolverhampton","WILKO RETAIL LIMIT","8.37","Planning","5722","Equipment - Purchase","22/11/2017"
"Wolverhampton City Council","http://opendatacommunities.org/id/metropolitan-district-council/wolverhampton","CURRYS S/S","1500.00","Mayoral Expenses","5732","Gratuities","22/11/2017"
"Wolverhampton City Council","http://opendatacommunities.org/id/metropolitan-district-council/wolverhampton","Virgin Trains","124.55","Information Governance Team","4112","Public Transport","22/11/2017"
"Wolverhampton City Council","http://opendatacommunities.org/id/metropolitan-district-council/wolverhampton","PREMIER INN","255.80","Adoption and Residence Team & Allowances","3811","Accommodation Costs","22/11/2017"
"Wolverhampton City Council","http://opendatacommunities.org/id/metropolitan-district-council/wolverhampton","B & Q 1243","8.22","Ernest Bold Court","5211","Equipment - R & M","22/11/2017"
"Wolverhampton City Council","http://opendatacommunities.org/id/metropolitan-district-council/wolverhampton","B&M RETAIL LTD","106.62","LAC Transitions Team","5310","Client Allowances","22/11/2017"
"Wolverhampton City Council","http://opendatacommunities.org/id/metropolitan-district-council/wolverhampton","ARGOS LTD","129.07","LAC Transitions Team","5310","Client Allowances","22/11/2017"
"Wolverhampton City Council","http://opendatacommunities.org/id/metropolitan-district-council/wolverhampton","MAYFAIR CARPETS & SUIT","291.67","LAC Transitions Team","5712","Client Allowances","22/11/2017"
"Wolverhampton City Council","http://opendatacommunities.org/id/metropolitan-district-council/wolverhampton","ROYAL MAIL ONLINE SHOP","177.00","Parking Enforcement","9402","Comms - Postage","22/11/2017"
"Wolverhampton City Council","http://opendatacommunities.org/id/metropolitan-district-council/wolverhampton","WWW.WESTMINSTER-BRIEFI","295.00","Central Training","8244","Training Expenses","22/11/2017"
"Wolverhampton City Council","http://opendatacommunities.org/id/metropolitan-district-council/wolverhampton","WWW.GOV.UK","10.00","Legal Services","8999","Services - Professional Fees","22/11/2017"
"Wolverhampton City Council","http://opendatacommunities.org/id/metropolitan-district-council/wolverhampton","J VAN VLIET BIRMINGHAM","96.41","Discretionary Fund","5399","Materials","22/11/2017"
"Wolverhampton City Council","http://opendatacommunities.org/id/metropolitan-district-council/wolverhampton","Cross Country Trains","101.55","Pupil & Student Support","4112","Public Transport","22/11/2017"
"Wolverhampton City Council","http://opendatacommunities.org/id/metropolitan-district-council/wolverhampton","EUROMOTIVE","76.66","Fleet Management","7538","Equipment - Purchase","22/11/2017"
"Wolverhampton City Council","http://opendatacommunities.org/id/metropolitan-district-council/wolverhampton","HOME BARGAINS","5.90","Adoption and Residence Team & Allowances","5251","Stationery","22/11/2017"
"Wolverhampton City Council","http://opendatacommunities.org/id/metropolitan-district-council/wolverhampton","HOBBY CRAFT LTD","80.24","Adoption and Residence Team & Allowances","5970","Stationery","22/11/2017"
"Wolverhampton City Council","http://opendatacommunities.org/id/metropolitan-district-council/wolverhampton","POST OFFICE COUNTER","2.22","Adoption and Residence Team & Allowances","9402","Comms - Postage","21/11/2017"
"Wolverhampton City Council","http://opendatacommunities.org/id/metropolitan-district-council/wolverhampton","BLOXWICH  SST","7.00","Economic Development","4112","Public Transport","21/11/2017"
"Wolverhampton City Council","http://opendatacommunities.org/id/metropolitan-district-council/wolverhampton","GREENPOWER EDUCATION T","75.00","Headstart - Learning Technologies Team","8398","Services - Supplies & Services to users","21/11/2017"
"Wolverhampton City Council","http://opendatacommunities.org/id/metropolitan-district-council/wolverhampton","Amazon UK Marketplace","17.23","Headstart Hubs","5942","Equipment - Purchase","21/11/2017"
"Wolverhampton City Council","http://opendatacommunities.org/id/metropolitan-district-council/wolverhampton","ASDA HOME SHOPPING","95.66","Ernest Bold Court","5411","Provisions (Not for resale)","21/11/2017"
"Wolverhampton City Council","http://opendatacommunities.org/id/metropolitan-district-council/wolverhampton","NATWEST BANK","100.00","Democratic Support","6011","Public Transport","21/11/2017"
"Wolverhampton City Council","http://opendatacommunities.org/id/metropolitan-district-council/wolverhampton","CURRYS S/S","224.17","LAC Transitions Team","5732","Client Allowances","21/11/2017"
"Wolverhampton City Council","http://opendatacommunities.org/id/metropolitan-district-council/wolverhampton","GEO E DAVIES","1.66","LAC Transitions Team","5732","Client Allowances","21/11/2017"
"Wolverhampton City Council","http://opendatacommunities.org/id/metropolitan-district-council/wolverhampton","MAYFAIR CARPETS & SUIT","279.17","LAC Transitions Team","5712","Client Allowances","21/11/2017"
"Wolverhampton City Council","http://opendatacommunities.org/id/metropolitan-district-council/wolverhampton","TOOLSTATION LTD","8.05","Education Catering - General Overheads","5251","Equipment - R & M","21/11/2017"
"Wolverhampton City Council","http://opendatacommunities.org/id/metropolitan-district-council/wolverhampton","CIEH","381.00","Central Training","8699","Training Expenses","21/11/2017"
"Wolverhampton City Council","http://opendatacommunities.org/id/metropolitan-district-council/wolverhampton","ASDA SUPERSTORE","7.58","CIN/CP Social Work Unit - Area 5","5411","No Recourse to Public Funds","21/11/2017"
"Wolverhampton City Council","http://opendatacommunities.org/id/metropolitan-district-council/wolverhampton","ASDA SUPERSTORE","15.78","CIN/CP Social Work Unit - Area 5","5411","No Recourse to Public Funds","21/11/2017"
"Wolverhampton City Council","http://opendatacommunities.org/id/metropolitan-district-council/wolverhampton","ASDA SUPERSTORE","17.48","CIN/CP Social Work Unit - Area 5","5411","No Recourse to Public Funds","21/11/2017"
"Wolverhampton City Council","http://opendatacommunities.org/id/metropolitan-district-council/wolverhampton","AMAZON SVCS EU-UK AMAZ","12.83","Street Cleansing Overheads","5942","Stationery","21/11/2017"
"Wolverhampton City Council","http://opendatacommunities.org/id/metropolitan-district-council/wolverhampton","AMAZON SVCS EU-UK AMAZ","99.90","Music Support Team","5942","Equipment - R & M","21/11/2017"
"Wolverhampton City Council","http://opendatacommunities.org/id/metropolitan-district-council/wolverhampton","Amazon UK Marketplace","37.47","Headstart Hubs","5942","Equipment - Purchase","21/11/2017"
"Wolverhampton City Council","http://opendatacommunities.org/id/metropolitan-district-council/wolverhampton","WCC - CIVIC CENTRE CAT","1.33","Headstart - Young People Engagement","9399","Subsistence","21/11/2017"
"Wolverhampton City Council","http://opendatacommunities.org/id/metropolitan-district-council/wolverhampton","WOLVERHAMPTON CC","10.42","Headstart - Young People Engagement","7523","Parking Fees","21/11/2017"
"Wolverhampton City Council","http://opendatacommunities.org/id/metropolitan-district-council/wolverhampton","SAINSBURYS SACAT (2340","28.00","IMPACT","5411","Provisions (Not for resale)","21/11/2017"
"Wolverhampton City Council","http://opendatacommunities.org/id/metropolitan-district-council/wolverhampton","ARGOS LTD","22.99","Ernest Bold Court","5310","Equipment - Purchase","21/11/2017"
"Wolverhampton City Council","http://opendatacommunities.org/id/metropolitan-district-council/wolverhampton","AMAZON SVCS EU-UK AMAZ","7.39","EIP Locality 8","5942","Equipment - Hire","21/11/2017"
"Wolverhampton City Council","http://opendatacommunities.org/id/metropolitan-district-council/wolverhampton","ARGOS LTD","97.98","EIP Locality 8","5310","Grant Payments","21/11/2017"
"Wolverhampton City Council","http://opendatacommunities.org/id/metropolitan-district-council/wolverhampton","Trainline","62.22","LAC Education Team (LACE)","4112","Public Transport","21/11/2017"
"Wolverhampton City Council","http://opendatacommunities.org/id/metropolitan-district-council/wolverhampton","CT WOLVERHAMPTON","45.00","LAC Transitions Team","8398","Client Allowances","21/11/2017"
"Wolverhampton City Council","http://opendatacommunities.org/id/metropolitan-district-council/wolverhampton","WILKO RETAIL LIMIT","20.00","LAC Transitions Team","5722","Client Allowances","21/11/2017"
"Wolverhampton City Council","http://opendatacommunities.org/id/metropolitan-district-council/wolverhampton","POUNDWORLD 308","30.42","LAC Transitions Team","5310","Client Allowances","21/11/2017"
"Wolverhampton City Council","http://opendatacommunities.org/id/metropolitan-district-council/wolverhampton","VIDEOBLOCKS 888-353-14","116.32","Headstart Phase 3","7829","Subscriptions","21/11/2017"
"Wolverhampton City Council","http://opendatacommunities.org/id/metropolitan-district-council/wolverhampton","AUDIOBLOCKS 855-766-77","77.28","Headstart Phase 3","7829","Subscriptions","21/11/2017"
"Wolverhampton City Council","http://opendatacommunities.org/id/metropolitan-district-council/wolverhampton","AMAZON EU AMAZON.CO.UK","18.99","Archives","5999","Books","21/11/2017"
"Wolverhampton City Council","http://opendatacommunities.org/id/metropolitan-district-council/wolverhampton","POUNDLAND","0.83","EIP Locality 1","5310","Equipment - Purchase","21/11/2017"
"Wolverhampton City Council","http://opendatacommunities.org/id/metropolitan-district-council/wolverhampton","Trainline","77.21","CIN/CP Social Work Unit - Area 2","4112","Public Transport","21/11/2017"
"Wolverhampton City Council","http://opendatacommunities.org/id/metropolitan-district-council/wolverhampton","JOHNSTONES DEC CENTRE","13.08","Cleaning of Buildings - General","5231","Materials","21/11/2017"
"Wolverhampton City Council","http://opendatacommunities.org/id/metropolitan-district-council/wolverhampton","AMZ Tec Uk","-5.69","Private Sector Housing","5999","Equipment - Purchase","21/11/2017"
"Wolverhampton City Council","http://opendatacommunities.org/id/metropolitan-district-council/wolverhampton","ASDAN","195.80","LAC Transitions Team","8299","Client Allowances","21/11/2017"
"Wolverhampton City Council","http://opendatacommunities.org/id/metropolitan-district-council/wolverhampton","Cross Country Trains","7.60","Head of Strategic Commissioning � People","4112","Public Transport","21/11/2017"
"Wolverhampton City Council","http://opendatacommunities.org/id/metropolitan-district-council/wolverhampton","AMAZON EU AMAZON.CO.UK","243.36","Technical Support","5999","Equipment - Purchase","21/11/2017"
"Wolverhampton City Council","http://opendatacommunities.org/id/metropolitan-district-council/wolverhampton","AMAZON SVCS EU-UK AMAZ","99.99","Technical Support","5942","Books","21/11/2017"
"Wolverhampton City Council","http://opendatacommunities.org/id/metropolitan-district-council/wolverhampton","Amazon UK Marketplace","11.40","Global Budgets","5942","Books","21/11/2017"
"Wolverhampton City Council","http://opendatacommunities.org/id/metropolitan-district-council/wolverhampton","E01577600000000","200.00","EIP Locality 3","6011","Grant Payments","21/11/2017"
"Wolverhampton City Council","http://opendatacommunities.org/id/metropolitan-district-council/wolverhampton","PREMIER INN","85.99","Emergency Duty Team","3811","Services - Supplies & Services to users","20/11/2017"
"Wolverhampton City Council","http://opendatacommunities.org/id/metropolitan-district-council/wolverhampton","AMAZON.CO.UK","67.98","Towers Outdoor Education Centre","5942","Equipment - Purchase","20/11/2017"
"Wolverhampton City Council","http://opendatacommunities.org/id/metropolitan-district-council/wolverhampton","ASDA SUPERSTORE","56.37","Education And Access","5411","Provisions (Not for resale)","20/11/2017"
"Wolverhampton City Council","http://opendatacommunities.org/id/metropolitan-district-council/wolverhampton","AMAZON EU AMAZON.CO.UK","54.17","Headstart Hubs","5999","Equipment - Purchase","20/11/2017"
"Wolverhampton City Council","http://opendatacommunities.org/id/metropolitan-district-council/wolverhampton","RINBOW","136.62","Headstart Hubs","5943","Equipment - Purchase","20/11/2017"
"Wolverhampton City Council","http://opendatacommunities.org/id/metropolitan-district-council/wolverhampton","SAINSBURYS PFS (1340)","1.67","Mayoral Expenses","5541","Vehicle Maintenance - Repairs","20/11/2017"
"Wolverhampton City Council","http://opendatacommunities.org/id/metropolitan-district-council/wolverhampton","AMAZON EU AMAZON.CO.UK","197.96","Licensing - General","5999","Equipment - Purchase","20/11/2017"
"Wolverhampton City Council","http://opendatacommunities.org/id/metropolitan-district-council/wolverhampton","T.A. HENN & SON LTD","1050.00","Mayoral Expenses","5944","Gratuities","20/11/2017"
"Wolverhampton City Council","http://opendatacommunities.org/id/metropolitan-district-council/wolverhampton","MILLERS JEWELLERS","1050.00","Mayoral Expenses","5944","Gratuities","20/11/2017"
"Wolverhampton City Council","http://opendatacommunities.org/id/metropolitan-district-council/wolverhampton","SCREWFIX DIRECT","55.96","Caretakers Community Centre","5211","Materials","20/11/2017"
"Wolverhampton City Council","http://opendatacommunities.org/id/metropolitan-district-council/wolverhampton","WWW.ARGOS.CO.UK","122.94","Upper Pendeford Farm Childrens Home","5310","Equipment - Purchase","20/11/2017"
"Wolverhampton City Council","http://opendatacommunities.org/id/metropolitan-district-council/wolverhampton","ASDA HOME SHOPPING","196.59","Upper Pendeford Farm Childrens Home","5411","Provisions (Not for resale)","20/11/2017"
"Wolverhampton City Council","http://opendatacommunities.org/id/metropolitan-district-council/wolverhampton","ARRIVA TRAINS WALE","29.30","Research & Development","4112","Public Transport","20/11/2017"
"Wolverhampton City Council","http://opendatacommunities.org/id/metropolitan-district-council/wolverhampton","YOUNG`S SHOE REPAIRS L","150.00","Wolverhampton Indoor and Open Market","7251","Fixtures and Fittings - R&M","20/11/2017"
"Wolverhampton City Council","http://opendatacommunities.org/id/metropolitan-district-council/wolverhampton","POST OFFICE COUNTER","7.80","Private Sector Housing","9402","Comms - Postage","20/11/2017"
"Wolverhampton City Council","http://opendatacommunities.org/id/metropolitan-district-council/wolverhampton","POST OFFICE COUNTER","204.00","Learning Disabilities Management","9402","Comms - Postage","20/11/2017"
"Wolverhampton City Council","http://opendatacommunities.org/id/metropolitan-district-council/wolverhampton","POST OFFICE COUNTER","6.45","SEN Sensory Inclusion","9402","Comms - Postage","20/11/2017"
"Wolverhampton City Council","http://opendatacommunities.org/id/metropolitan-district-council/wolverhampton","RS COMPONENTS","31.70","SEN Sensory Inclusion","5065","Equipment - Purchase","20/11/2017"
"Wolverhampton City Council","http://opendatacommunities.org/id/metropolitan-district-council/wolverhampton","AMAZON SVCS EU-UK AMAZ","154.99","Technical Support","5942","Books","20/11/2017"
"Wolverhampton City Council","http://opendatacommunities.org/id/metropolitan-district-council/wolverhampton","Amazon UK Marketplace","8.98","Technical Support","5942","Books","20/11/2017"
"Wolverhampton City Council","http://opendatacommunities.org/id/metropolitan-district-council/wolverhampton","AMAZON EU AMAZON.CO.UK","17.89","Global Budgets","5999","Books","20/11/2017"
"Wolverhampton City Council","http://opendatacommunities.org/id/metropolitan-district-council/wolverhampton","Amazon EU","12.57","Global Budgets","5969","Books","20/11/2017"
"Wolverhampton City Council","http://opendatacommunities.org/id/metropolitan-district-council/wolverhampton","ASDA HOME SHOPPING","-0.30","Ernest Bold Court","5411","Provisions (Not for resale)","20/11/2017"
"Wolverhampton City Council","http://opendatacommunities.org/id/metropolitan-district-council/wolverhampton","ASDA HOME SHOPPING","75.80","Ernest Bold Court","5411","Provisions (Not for resale)","20/11/2017"
"Wolverhampton City Council","http://opendatacommunities.org/id/metropolitan-district-council/wolverhampton","WWW.WESTMINSTER-BRIEFI","215.00","Youth Offending Team","8244","Training Expenses","20/11/2017"
"Wolverhampton City Council","http://opendatacommunities.org/id/metropolitan-district-council/wolverhampton","WWW.WESTMINSTER-BRIEFI","215.00","Youth Offending Team","8244","Training Expenses","20/11/2017"
"Wolverhampton City Council","http://opendatacommunities.org/id/metropolitan-district-council/wolverhampton","AMAZON SVCS EU-UK AMAZ","27.00","EIP Locality 8","5942","Equipment - Hire","20/11/2017"
"Wolverhampton City Council","http://opendatacommunities.org/id/metropolitan-district-council/wolverhampton","AMAZON SVCS EU-UK AMAZ","11.80","EIP Locality 8","5942","Equipment - Hire","20/11/2017"
"Wolverhampton City Council","http://opendatacommunities.org/id/metropolitan-district-council/wolverhampton","Stripe","38.30","City Direct","7372","Computing - Purchase of Software","20/11/2017"
"Wolverhampton City Council","http://opendatacommunities.org/id/metropolitan-district-council/wolverhampton","POUNDWORLD RETAIL","3.33","City Direct","5310","Equipment - Purchase","20/11/2017"
"Wolverhampton City Council","http://opendatacommunities.org/id/metropolitan-district-council/wolverhampton","Trainline","185.74","City Learning Quarter Regen Reserve","4112","Public Transport","20/11/2017"
"Wolverhampton City Council","http://opendatacommunities.org/id/metropolitan-district-council/wolverhampton","B & Q 1243","11.32","Public Conveniences","5211","Materials","20/11/2017"
"Wolverhampton City Council","http://opendatacommunities.org/id/metropolitan-district-council/wolverhampton","Amazon UK Marketplace","133.32","Strategic ICTS (ICT Serv Budget)","5942","Equipment - Purchase","20/11/2017"
"Wolverhampton City Council","http://opendatacommunities.org/id/metropolitan-district-council/wolverhampton","ASDA GEORGE COM LEEDS","39.50","CIN/CP Social Work Unit - Area 5","5411","Section 17","20/11/2017"
"Wolverhampton City Council","http://opendatacommunities.org/id/metropolitan-district-council/wolverhampton","FANTASIA FLOWERS LTD","20.25","Civic Centre Catering","5992","Equipment - Purchase","20/11/2017"
"Wolverhampton City Council","http://opendatacommunities.org/id/metropolitan-district-council/wolverhampton","AMAZON SVCS EU-UK AMAZ","17.90","Children & Family Contact Services","5942","Equipment - Purchase","20/11/2017"
"Wolverhampton City Council","http://opendatacommunities.org/id/metropolitan-district-council/wolverhampton","AMAZON SVCS EU-UK AMAZ","50.82","Children & Family Contact Services","5942","Equipment - Purchase","20/11/2017"
"Wolverhampton City Council","http://opendatacommunities.org/id/metropolitan-district-council/wolverhampton","AMAZON SVCS EU-UK AMAZ","5.84","Street Cleansing Overheads","5942","Stationery","20/11/2017"
"Wolverhampton City Council","http://opendatacommunities.org/id/metropolitan-district-council/wolverhampton","AMAZON SVCS EU-UK AMAZ","12.18","Landscape","5942","Stationery","20/11/2017"
"Wolverhampton City Council","http://opendatacommunities.org/id/metropolitan-district-council/wolverhampton","AMAZON SVCS EU-UK AMAZ","3.94","Arbor Scheme","5942","Stationery","20/11/2017"
"Wolverhampton City Council","http://opendatacommunities.org/id/metropolitan-district-council/wolverhampton","AMAZON SVCS EU-UK AMAZ","35.48","Culwell Street Depot","5942","Books","20/11/2017"
"Wolverhampton City Council","http://opendatacommunities.org/id/metropolitan-district-council/wolverhampton","CHILLINGTON SELF STORA","25.31","CIN/CP Social Work Unit - Area 1","4214","Section 17","20/11/2017"
"Wolverhampton City Council","http://opendatacommunities.org/id/metropolitan-district-council/wolverhampton","CHILLINGTON SELF STORA","50.00","CIN/CP Social Work Unit - Area 1","4214","Section 17","20/11/2017"
"Wolverhampton City Council","http://opendatacommunities.org/id/metropolitan-district-council/wolverhampton","CHILLINGTON SELF STORA","50.00","CIN/CP Social Work Unit - Area 1","4214","Section 17","20/11/2017"
"Wolverhampton City Council","http://opendatacommunities.org/id/metropolitan-district-council/wolverhampton","AMAZON SVCS EU-UK AMAZ","1.30","Planning","5942","Stationery","20/11/2017"
"Wolverhampton City Council","http://opendatacommunities.org/id/metropolitan-district-council/wolverhampton","ALDI 94 772        S","21.51","EIP Locality 3","5411","Grant Payments","17/11/2017"
"Wolverhampton City Council","http://opendatacommunities.org/id/metropolitan-district-council/wolverhampton","POST OFFICE COUNTER","7.25","LAC Transitions Team","9402","Comms - Postage","17/11/2017"
"Wolverhampton City Council","http://opendatacommunities.org/id/metropolitan-district-council/wolverhampton","THE POST OFFICE","2.32","CIN/CP Social Work Unit - Area 4","9402","Comms - Postage","17/11/2017"
"Wolverhampton City Council","http://opendatacommunities.org/id/metropolitan-district-council/wolverhampton","REGISTRARS OFFICE","120.00","Head of Service - CINCP","8299","Services - Professional Fees","17/11/2017"
"Wolverhampton City Council","http://opendatacommunities.org/id/metropolitan-district-council/wolverhampton","Trainline","189.16","Legal Services","4112","Public Transport","17/11/2017"
"Wolverhampton City Council","http://opendatacommunities.org/id/metropolitan-district-council/wolverhampton","AMAZON SVCS EU-UK AMAZ","11.24","Mental Health Assessment & Care Mgmt","5942","Books","17/11/2017"
"Wolverhampton City Council","http://opendatacommunities.org/id/metropolitan-district-council/wolverhampton","J VAN VLIET BIRMINGHAM","101.57","Creative Studies Delivery Area","5399","Materials for resale","17/11/2017"
"Wolverhampton City Council","http://opendatacommunities.org/id/metropolitan-district-council/wolverhampton","Amazon UK Marketplace","26.63","EIP Locality 5","5942","Equipment - Purchase","17/11/2017"
"Wolverhampton City Council","http://opendatacommunities.org/id/metropolitan-district-council/wolverhampton","Amazon UK Marketplace","6.66","EIP Locality 5","5942","Equipment - Purchase","17/11/2017"
"Wolverhampton City Council","http://opendatacommunities.org/id/metropolitan-district-council/wolverhampton","AMAZON UK PRIME AMZN.C","-7.99","Upper Pendeford Farm Childrens Home","5968","Subscriptions","17/11/2017"
"Wolverhampton City Council","http://opendatacommunities.org/id/metropolitan-district-council/wolverhampton","WOLVERHAMPTON CC","4.58","Headstart Phase 3","7523","Parking Fees","17/11/2017"
"Wolverhampton City Council","http://opendatacommunities.org/id/metropolitan-district-council/wolverhampton","Trainline","307.02","Headstart Phase 3","4112","Public Transport","17/11/2017"
"Wolverhampton City Council","http://opendatacommunities.org/id/metropolitan-district-council/wolverhampton","Trainline","26.88","CIN/CP Social Work Unit - Area 2","4112","Section 17","17/11/2017"
"Wolverhampton City Council","http://opendatacommunities.org/id/metropolitan-district-council/wolverhampton","HIMLEY COUNTRY HOTEL","157.00","Hostels / Outreach","7011","Services - Supplies & Services to users","17/11/2017"
"Wolverhampton City Council","http://opendatacommunities.org/id/metropolitan-district-council/wolverhampton","Trainline","66.20","Research & Development","4112","Public Transport","17/11/2017"
"Wolverhampton City Council","http://opendatacommunities.org/id/metropolitan-district-council/wolverhampton","Virgin Trains","7.60","Children & Young People Support Costs","4112","Public Transport","17/11/2017"
"Wolverhampton City Council","http://opendatacommunities.org/id/metropolitan-district-council/wolverhampton","AMAZON SVCS EU-UK AMAZ","15.90","Technical Support","5942","Books","17/11/2017"
"Wolverhampton City Council","http://opendatacommunities.org/id/metropolitan-district-council/wolverhampton","AMAZON SVCS EU-UK AMAZ","14.41","Technical Support","5942","Books","17/11/2017"
"Wolverhampton City Council","http://opendatacommunities.org/id/metropolitan-district-council/wolverhampton","POLYBAGS LTD","61.19","Technical Support","5099","Equipment - Purchase","17/11/2017"
"Wolverhampton City Council","http://opendatacommunities.org/id/metropolitan-district-council/wolverhampton","AIRSERVER","79.90","Technical Support","5045","Computing - Purchase of Hardware","17/11/2017"
"Wolverhampton City Council","http://opendatacommunities.org/id/metropolitan-district-council/wolverhampton","PAYPAL  BANANAPRINT","49.90","Technical Support","8931","Services - Professional Fees","17/11/2017"
"Wolverhampton City Council","http://opendatacommunities.org/id/metropolitan-district-council/wolverhampton","SNAP    GEOFILTERS","9.69","Communications & Marketing - General","7311","Marketing \ Non-staff advertising","17/11/2017"
"Wolverhampton City Council","http://opendatacommunities.org/id/metropolitan-district-council/wolverhampton","SNAP    GEOFILTERS","20.00","Communications & Marketing - General","7311","Marketing \ Non-staff advertising","17/11/2017"
"Wolverhampton City Council","http://opendatacommunities.org/id/metropolitan-district-council/wolverhampton","SNAP    GEOFILTERS","8.38","Communications & Marketing - General","7311","Marketing \ Non-staff advertising","17/11/2017"
"Wolverhampton City Council","http://opendatacommunities.org/id/metropolitan-district-council/wolverhampton","SNAP    GEOFILTERS","13.19","Communications & Marketing - General","7311","Marketing \ Non-staff advertising","17/11/2017"
"Wolverhampton City Council","http://opendatacommunities.org/id/metropolitan-district-council/wolverhampton","SNAP    GEOFILTERS","3.80","Communications & Marketing - General","7311","Marketing \ Non-staff advertising","17/11/2017"
"Wolverhampton City Council","http://opendatacommunities.org/id/metropolitan-district-council/wolverhampton","SNAP    GEOFILTERS","16.71","Communications & Marketing - General","7311","Marketing \ Non-staff advertising","17/11/2017"
"Wolverhampton City Council","http://opendatacommunities.org/id/metropolitan-district-council/wolverhampton","WOLVERHAMPTON CC","8.33","IMPACT","7523","Car Allowances","17/11/2017"
"Wolverhampton City Council","http://opendatacommunities.org/id/metropolitan-district-council/wolverhampton","POUNDLAND LTD 1463","5.00","City Direct","5310","Equipment - Purchase","17/11/2017"
"Wolverhampton City Council","http://opendatacommunities.org/id/metropolitan-district-council/wolverhampton","Amazon UK Marketplace","15.95","LAC Education Team (LACE)","5942","Books","17/11/2017"
"Wolverhampton City Council","http://opendatacommunities.org/id/metropolitan-district-council/wolverhampton","REGISTRARS OFFICE","20.00","Adoption and Residence Team & Allowances","8299","Services - Fees and Charges","17/11/2017"
"Wolverhampton City Council","http://opendatacommunities.org/id/metropolitan-district-council/wolverhampton","AMAZON SVCS EU-UK AMAZ","333.29","Uplands School","5942","Comms - Mobile Telephones","17/11/2017"
"Wolverhampton City Council","http://opendatacommunities.org/id/metropolitan-district-council/wolverhampton","VIDEKONLINE.CO.UK","45.55","Strategic ICTS (ICT Serv Budget)","5722","Equipment - Purchase","17/11/2017"
"Wolverhampton City Council","http://opendatacommunities.org/id/metropolitan-district-council/wolverhampton","W M MORRISON PLC","69.12","Safeguarding Admin Resource","5411","Provisions (Not for resale)","17/11/2017"
"Wolverhampton City Council","http://opendatacommunities.org/id/metropolitan-district-council/wolverhampton","Trainline","195.33","Safeguarding Admin Resource","4112","Public Transport","17/11/2017"
"Wolverhampton City Council","http://opendatacommunities.org/id/metropolitan-district-council/wolverhampton","POST OFFICE COUNTER","130.00","Safeguarding Admin Resource","9402","Comms - Postage","17/11/2017"
"Wolverhampton City Council","http://opendatacommunities.org/id/metropolitan-district-council/wolverhampton","HALFORDS 0775","9.00","LAC Transitions Team","5940","Equipment - Purchase","17/11/2017"
"Wolverhampton City Council","http://opendatacommunities.org/id/metropolitan-district-council/wolverhampton","WOLVERHAMPTON CITY COU","304.00","LAC Transitions Team","9399","Services - Fees and Charges","17/11/2017"
"Wolverhampton City Council","http://opendatacommunities.org/id/metropolitan-district-council/wolverhampton","B&Q DIRECT","220.00","Towers Outdoor Education Centre","5211","Equipment - Purchase","17/11/2017"
"Wolverhampton City Council","http://opendatacommunities.org/id/metropolitan-district-council/wolverhampton","WILKO RETAIL LIMIT","3.33","Blakenhall Commty & Healthy Living Ctr","5722","Equipment - Purchase","16/11/2017"
"Wolverhampton City Council","http://opendatacommunities.org/id/metropolitan-district-council/wolverhampton","COMPANY CARDS LTD","33.50","Technical Support","2741","Publications","16/11/2017"
"Wolverhampton City Council","http://opendatacommunities.org/id/metropolitan-district-council/wolverhampton","Amazon EU","11.98","Technical Support","5969","Equipment - Purchase","16/11/2017"
"Wolverhampton City Council","http://opendatacommunities.org/id/metropolitan-district-council/wolverhampton","Amazon UK Marketplace","32.99","Technical Support","5942","Books","16/11/2017"
"Wolverhampton City Council","http://opendatacommunities.org/id/metropolitan-district-council/wolverhampton","EAST & WEST AID","54.17","EIP Locality 3","8398","Grant Payments","16/11/2017"
"Wolverhampton City Council","http://opendatacommunities.org/id/metropolitan-district-council/wolverhampton","Trainline","106.13","Economic Development","4112","Public Transport","16/11/2017"
"Wolverhampton City Council","http://opendatacommunities.org/id/metropolitan-district-council/wolverhampton","ARGOS LTD","-13.52","LAC Transitions Team","5310","Client Allowances","16/11/2017"
"Wolverhampton City Council","http://opendatacommunities.org/id/metropolitan-district-council/wolverhampton","POST OFFICE COUNTER","2.60","CIN/CP Social Work Unit - Area 7","9402","Comms - Postage","16/11/2017"
"Wolverhampton City Council","http://opendatacommunities.org/id/metropolitan-district-council/wolverhampton","AMAZON EU AMAZON.CO.UK","53.32","Collections","5999","Materials","16/11/2017"
"Wolverhampton City Council","http://opendatacommunities.org/id/metropolitan-district-council/wolverhampton","Trainline","199.41","CIN/CP Social Work Unit - Area 4","4112","Section 17","16/11/2017"
"Wolverhampton City Council","http://opendatacommunities.org/id/metropolitan-district-council/wolverhampton","CATCHBOX","1358.38","Customer Services","5732","Equipment - Purchase","16/11/2017"
"Wolverhampton City Council","http://opendatacommunities.org/id/metropolitan-district-council/wolverhampton","GO CARZ","52.24","Adult Services - East","4121","Client Transport","16/11/2017"
"Wolverhampton City Council","http://opendatacommunities.org/id/metropolitan-district-council/wolverhampton","CLOCKWORK ESCAPES","255.00","EIP Locality 2","5734","Computing - Purchase of Software","16/11/2017"
"Wolverhampton City Council","http://opendatacommunities.org/id/metropolitan-district-council/wolverhampton","Amazon EU","5.50","Civic Halls Non Direct Management A/C","5969","Computing - Consumables","16/11/2017"
"Wolverhampton City Council","http://opendatacommunities.org/id/metropolitan-district-council/wolverhampton","NUMBER 1 PLATES","12.44","Towers Outdoor Education Centre","5533","Equipment - Purchase","16/11/2017"
"Wolverhampton City Council","http://opendatacommunities.org/id/metropolitan-district-council/wolverhampton","B&Q DIRECT","50.00","Towers Outdoor Education Centre","5211","Fixtures and Fittings - Purchases","16/11/2017"
"Wolverhampton City Council","http://opendatacommunities.org/id/metropolitan-district-council/wolverhampton","BLOXWICH  SST","7.00","Economic Development","4112","Public Transport","16/11/2017"
"Wolverhampton City Council","http://opendatacommunities.org/id/metropolitan-district-council/wolverhampton","Virgin Trains","7.60","Economic Development","4112","Public Transport","16/11/2017"
"Wolverhampton City Council","http://opendatacommunities.org/id/metropolitan-district-council/wolverhampton","AMAZON SVCS EU-UK AMAZ","25.82","Fostering Team & Allowances","5942","Events","16/11/2017"
"Wolverhampton City Council","http://opendatacommunities.org/id/metropolitan-district-council/wolverhampton","WWW.PMGLTD.CO.UK","346.50","Pupil Premium","7399","Training Expenses","16/11/2017"
"Wolverhampton City Council","http://opendatacommunities.org/id/metropolitan-district-council/wolverhampton","ARGOS RETAIL GROUP","264.96","LAC Transitions Team","5310","Client Allowances","16/11/2017"
"Wolverhampton City Council","http://opendatacommunities.org/id/metropolitan-district-council/wolverhampton","PCS AMV Couriers LTD","60.00","Strategic ICTS (ICT Serv Budget)","4214","Hire of Vehicles","16/11/2017"
"Wolverhampton City Council","http://opendatacommunities.org/id/metropolitan-district-council/wolverhampton","AMAZON EU AMAZON.CO.UK","111.78","Audit Services","5999","Equipment - Purchase","16/11/2017"
"Wolverhampton City Council","http://opendatacommunities.org/id/metropolitan-district-council/wolverhampton","ASDA SUPERSTORE","80.00","CIN/CP Social Work Unit - Area 3","5411","Section 17","16/11/2017"
"Wolverhampton City Council","http://opendatacommunities.org/id/metropolitan-district-council/wolverhampton","ASDA SUPERSTORE","120.00","CIN/CP Social Work Unit - Area 3","5411","Section 17","16/11/2017"
"Wolverhampton City Council","http://opendatacommunities.org/id/metropolitan-district-council/wolverhampton","CROWN PROPERTY SERVICE","280.00","CIN/CP Social Work Unit - Area 3","7011","Section 17","16/11/2017"
"Wolverhampton City Council","http://opendatacommunities.org/id/metropolitan-district-council/wolverhampton","SUFFOLK COUNTY COUNCIL","12.00","CIN/CP Social Work Unit - Area 3","9399","Section 17","16/11/2017"
"Wolverhampton City Council","http://opendatacommunities.org/id/metropolitan-district-council/wolverhampton","HOO HOOTSUITE MEDIA I","93.97","Service Wide","5968","Subscriptions","16/11/2017"
"Wolverhampton City Council","http://opendatacommunities.org/id/metropolitan-district-council/wolverhampton","BRITANNIA","417.00","Hostels / Outreach","7011","Services - Supplies & Services to users","16/11/2017"
"Wolverhampton City Council","http://opendatacommunities.org/id/metropolitan-district-council/wolverhampton","WWW.ARGOS.CO.UK","290.94","EIP Locality 1","5310","Grant Payments","16/11/2017"
"Wolverhampton City Council","http://opendatacommunities.org/id/metropolitan-district-council/wolverhampton","POUNDLAND","4.00","EIP Locality 1","5310","Equipment - Purchase","16/11/2017"
"Wolverhampton City Council","http://opendatacommunities.org/id/metropolitan-district-council/wolverhampton","WP-THE CRATFS COUNCIL","154.35","Arts Publicity","8398","Services - Supplies & Services to users","16/11/2017"
"Wolverhampton City Council","http://opendatacommunities.org/id/metropolitan-district-council/wolverhampton","COSTCUTTER WEDNESFIELD","8.90","Duke Street Bungalows","5411","Comms - Postage","16/11/2017"
"Wolverhampton City Council","http://opendatacommunities.org/id/metropolitan-district-council/wolverhampton","CURRYS ONLINE","122.87","Headstart Hubs","5732","Equipment - Purchase","15/11/2017"
"Wolverhampton City Council","http://opendatacommunities.org/id/metropolitan-district-council/wolverhampton","NOTEMACHINE","150.00","Headstart Phase 3","6011","Financial Assistance In Exceptional Circ","15/11/2017"
"Wolverhampton City Council","http://opendatacommunities.org/id/metropolitan-district-council/wolverhampton","ASDA SUPERSTORE","37.37","Headstart - Young People Engagement","5411","Stationery","15/11/2017"
"Wolverhampton City Council","http://opendatacommunities.org/id/metropolitan-district-council/wolverhampton","ARGOS WOLVERHAMPTO","12.54","Headstart - Young People Engagement","5310","Stationery","15/11/2017"
"Wolverhampton City Council","http://opendatacommunities.org/id/metropolitan-district-council/wolverhampton","SAINSBURYS (2340)","62.17","Headstart - Young People Engagement","5411","Stationery","15/11/2017"
"Wolverhampton City Council","http://opendatacommunities.org/id/metropolitan-district-council/wolverhampton","SANDWELL M.B.C.","10.00","IMPACT","9399","Services - Fees and Charges","15/11/2017"
"Wolverhampton City Council","http://opendatacommunities.org/id/metropolitan-district-council/wolverhampton","WWW.REDSPOTTEDHANK","19.20","Macmillan Welfare Rights","4112","Public Transport","15/11/2017"
"Wolverhampton City Council","http://opendatacommunities.org/id/metropolitan-district-council/wolverhampton","WWW.REDSPOTTEDHANK","19.20","Macmillan Welfare Rights","4112","Public Transport","15/11/2017"
"Wolverhampton City Council","http://opendatacommunities.org/id/metropolitan-district-council/wolverhampton","MARKS&SPENCER PLC SACA","40.00","Admin & Support","5411","Provisions (Not for resale)","15/11/2017"
"Wolverhampton City Council","http://opendatacommunities.org/id/metropolitan-district-council/wolverhampton","MAX SPIELMANN LTD","6.00","Admin & Support","7221","Publications","15/11/2017"
"Wolverhampton City Council","http://opendatacommunities.org/id/metropolitan-district-council/wolverhampton","LOOP11.COM","156.66","City Direct","7372","Computing - Purchase of Software","15/11/2017"
"Wolverhampton City Council","http://opendatacommunities.org/id/metropolitan-district-council/wolverhampton","ITUNES.COM/BILL","2.07","LAC Education Team (LACE)","5735","Computing - Purchase of Software","15/11/2017"
"Wolverhampton City Council","http://opendatacommunities.org/id/metropolitan-district-council/wolverhampton","WWW.WINCHESTER.AC.UK","95.00","LAC Transitions Team","8220","Training Expenses","15/11/2017"
"Wolverhampton City Council","http://opendatacommunities.org/id/metropolitan-district-council/wolverhampton","CT WOLVERHAMPTON","240.00","LAC Transitions Team","8398","Client Allowances","15/11/2017"
"Wolverhampton City Council","http://opendatacommunities.org/id/metropolitan-district-council/wolverhampton","WILKO.COM","4.00","Youth Offending Team","5722","Equipment - Purchase","15/11/2017"
"Wolverhampton City Council","http://opendatacommunities.org/id/metropolitan-district-council/wolverhampton","LOVE2SHOP.CO.UK","203.50","Healthy Lifestyles Team","8641","Educ Trips, Holidays, Outings, Activity","15/11/2017"
"Wolverhampton City Council","http://opendatacommunities.org/id/metropolitan-district-council/wolverhampton","W M MORRISONS.COM","72.28","Discretionary Fund","5411","Materials","15/11/2017"
"Wolverhampton City Council","http://opendatacommunities.org/id/metropolitan-district-council/wolverhampton","AMAZON SVCS EU-UK AMAZ","35.98","EIP Locality 5","5942","Equipment - Purchase","15/11/2017"
"Wolverhampton City Council","http://opendatacommunities.org/id/metropolitan-district-council/wolverhampton","KUDOS CATERING - RAF C","6.00","Headstart Phase 3","5812","Subsistence","15/11/2017"
"Wolverhampton City Council","http://opendatacommunities.org/id/metropolitan-district-council/wolverhampton","HOME BARGAINS","20.10","EIP Locality 1","5251","Equipment - Purchase","15/11/2017"
"Wolverhampton City Council","http://opendatacommunities.org/id/metropolitan-district-council/wolverhampton","ASDA SUPERSTORE","25.00","EIP Locality 5","5411","Equipment - Purchase","15/11/2017"
"Wolverhampton City Council","http://opendatacommunities.org/id/metropolitan-district-council/wolverhampton","WWW.AMEY.CO.UK","150.00","EIP Locality 5","5211","Refuse Collection","15/11/2017"
"Wolverhampton City Council","http://opendatacommunities.org/id/metropolitan-district-council/wolverhampton","HIMLEY COUNTRY HOTEL","69.17","Hostels / Outreach","7011","Services - Supplies & Services to users","15/11/2017"
"Wolverhampton City Council","http://opendatacommunities.org/id/metropolitan-district-council/wolverhampton","PAYPAL  CHILDFAMILY","27.50","EIP Locality 1","8299","Books","15/11/2017"
"Wolverhampton City Council","http://opendatacommunities.org/id/metropolitan-district-council/wolverhampton","PAYPAL  BANANAPRINT","94.79","Technical Support","8931","Services - Professional Fees","15/11/2017"
"Wolverhampton City Council","http://opendatacommunities.org/id/metropolitan-district-council/wolverhampton","WOLVES FC","75.00","Education And Access","7997","Services - Professional Fees","15/11/2017"
"Wolverhampton City Council","http://opendatacommunities.org/id/metropolitan-district-council/wolverhampton","ARGOS LTD","18.32","LAC Transitions Team","5310","Client Allowances","15/11/2017"
"Wolverhampton City Council","http://opendatacommunities.org/id/metropolitan-district-council/wolverhampton","BIRMINGHAM CASH REGIST","70.00","Shopmobility","7399","Equipment - R & M","15/11/2017"
"Wolverhampton City Council","http://opendatacommunities.org/id/metropolitan-district-council/wolverhampton","OYSTER ISSUE WEB","20.00","Legal Services","4112","Public Transport","15/11/2017"
"Wolverhampton City Council","http://opendatacommunities.org/id/metropolitan-district-council/wolverhampton","Trainline","189.16","Legal Services","4112","Public Transport","15/11/2017"
"Wolverhampton City Council","http://opendatacommunities.org/id/metropolitan-district-council/wolverhampton","J VAN VLIET BIRMINGHAM","124.88","Discretionary Fund","5399","Materials","15/11/2017"
"Wolverhampton City Council","http://opendatacommunities.org/id/metropolitan-district-council/wolverhampton","J VAN VLIET BIRMINGHAM","56.50","Creative Studies Delivery Area","5399","Materials for resale","15/11/2017"
"Wolverhampton City Council","http://opendatacommunities.org/id/metropolitan-district-council/wolverhampton","Trainline","10.45","Assessment Team (West)","4112","Public Transport","15/11/2017"
"Wolverhampton City Council","http://opendatacommunities.org/id/metropolitan-district-council/wolverhampton","Amazon UK Marketplace","14.99","Global Budgets","5942","Books","15/11/2017"
"Wolverhampton City Council","http://opendatacommunities.org/id/metropolitan-district-council/wolverhampton","NCE COMPUTER GROUP","157.50","Strategic ICTS (ICT Serv Budget)","7372","Computing - Purchase of Hardware","15/11/2017"
"Wolverhampton City Council","http://opendatacommunities.org/id/metropolitan-district-council/wolverhampton","TESCO STORES 5194","80.70","Towers Outdoor Education Centre","5411","Provisions (Not for resale)","15/11/2017"
"Wolverhampton City Council","http://opendatacommunities.org/id/metropolitan-district-council/wolverhampton","BURTECH CYF","305.85","Towers Outdoor Education Centre","7538","Vehicle Maintenance - Repairs","15/11/2017"
"Wolverhampton City Council","http://opendatacommunities.org/id/metropolitan-district-council/wolverhampton","CRANE & STAPLES","416.00","CIN/CP Social Work Unit - Area 6","8111","Section 17","15/11/2017"
"Wolverhampton City Council","http://opendatacommunities.org/id/metropolitan-district-council/wolverhampton","ITUNES.COM/BILL","1.99","Headstart - Learning Technologies Team","5735","Computing - Purchase of Software","15/11/2017"
"Wolverhampton City Council","http://opendatacommunities.org/id/metropolitan-district-council/wolverhampton","CARD FACTORY","19.88","EIP Locality 2","5947","Equipment - Purchase","15/11/2017"
"Wolverhampton City Council","http://opendatacommunities.org/id/metropolitan-district-council/wolverhampton","HOME BARGAINS WOLVERHA","7.98","LAC Transitions Team","5251","Client Allowances","15/11/2017"
"Wolverhampton City Council","http://opendatacommunities.org/id/metropolitan-district-council/wolverhampton","BRITANNIA","116.67","The Little Civic","7011","Accommodation Costs","14/11/2017"
"Wolverhampton City Council","http://opendatacommunities.org/id/metropolitan-district-council/wolverhampton","HSBC INVOICE FINAN","657.73","Towers Outdoor Education Centre","6012","Laundry Expenses","14/11/2017"
"Wolverhampton City Council","http://opendatacommunities.org/id/metropolitan-district-council/wolverhampton","WWW.HOBARTUK.CO.UK","193.42","Towers Outdoor Education Centre","5722","Fixtures and Fittings - Purchases","14/11/2017"
"Wolverhampton City Council","http://opendatacommunities.org/id/metropolitan-district-council/wolverhampton","Trainline","107.61","Electoral Registration","4112","Public Transport","14/11/2017"
"Wolverhampton City Council","http://opendatacommunities.org/id/metropolitan-district-council/wolverhampton","000002200500000","250.00","CIN/CP Social Work Unit - Area 6","6011","Financial Assistance In Exceptional Circ","14/11/2017"
"Wolverhampton City Council","http://opendatacommunities.org/id/metropolitan-district-council/wolverhampton","ASDA HOME SHOPPING","38.87","EIP Locality 4","5411","Grant Payments","14/11/2017"
"Wolverhampton City Council","http://opendatacommunities.org/id/metropolitan-district-council/wolverhampton","E01353600000000","100.00","Childrens with Disabilities Team","6011","No Recourse to Public Funds","14/11/2017"
"Wolverhampton City Council","http://opendatacommunities.org/id/metropolitan-district-council/wolverhampton","E01353600000000","250.00","Childrens with Disabilities Team","6011","No Recourse to Public Funds","14/11/2017"
"Wolverhampton City Council","http://opendatacommunities.org/id/metropolitan-district-council/wolverhampton","COMPTON SHOP GARRICK","110.00","LAC Transitions Team","5712","Client Allowances","14/11/2017"
"Wolverhampton City Council","http://opendatacommunities.org/id/metropolitan-district-council/wolverhampton","AMAZON SVCS EU-UK AMAZ","4.17","Intensive Family Support Team","5942","Books","14/11/2017"
"Wolverhampton City Council","http://opendatacommunities.org/id/metropolitan-district-council/wolverhampton","POSTURITE (UK) LTD","194.33","Intensive Family Support Team","5021","Furniture","14/11/2017"
"Wolverhampton City Council","http://opendatacommunities.org/id/metropolitan-district-council/wolverhampton","E01510300000000","60.00","Emergency Duty Team","6011","Financial Assistance In Exceptional Circ","14/11/2017"
"Wolverhampton City Council","http://opendatacommunities.org/id/metropolitan-district-council/wolverhampton","ASDA HOME SHOPPING","100.80","Upper Pendeford Farm Childrens Home","5411","Provisions (Not for resale)","14/11/2017"
"Wolverhampton City Council","http://opendatacommunities.org/id/metropolitan-district-council/wolverhampton","IKEA LIMITED","19.42","LAC Transitions Team","5712","Client Allowances","14/11/2017"
"Wolverhampton City Council","http://opendatacommunities.org/id/metropolitan-district-council/wolverhampton","HUGHES","406.67","LAC Transitions Team","5732","Client Allowances","14/11/2017"
"Wolverhampton City Council","http://opendatacommunities.org/id/metropolitan-district-council/wolverhampton","HUGHES","406.67","LAC Transitions Team","5732","Client Allowances","14/11/2017"
"Wolverhampton City Council","http://opendatacommunities.org/id/metropolitan-district-council/wolverhampton","HUGHES","406.67","LAC Transitions Team","5732","Client Allowances","14/11/2017"
"Wolverhampton City Council","http://opendatacommunities.org/id/metropolitan-district-council/wolverhampton","WIX.COM","46.57","Technical Support","5968","Subscriptions","14/11/2017"
"Wolverhampton City Council","http://opendatacommunities.org/id/metropolitan-district-council/wolverhampton","ASDA HOME SHOPPING","87.00","Ernest Bold Court","5411","Provisions (Not for resale)","14/11/2017"
"Wolverhampton City Council","http://opendatacommunities.org/id/metropolitan-district-council/wolverhampton","WWW.ARGOS.CO.UK","298.27","LAC Transitions Team","5310","Client Allowances","14/11/2017"
"Wolverhampton City Council","http://opendatacommunities.org/id/metropolitan-district-council/wolverhampton","WWW.ARGOS.CO.UK","84.98","LAC Transitions Team","5310","Client Allowances","14/11/2017"
"Wolverhampton City Council","http://opendatacommunities.org/id/metropolitan-district-council/wolverhampton","PAYPAL  INSIDERMEDI","79.00","Strategic Director Place","5942","Subscriptions","14/11/2017"
"Wolverhampton City Council","http://opendatacommunities.org/id/metropolitan-district-council/wolverhampton","Trainline","114.29","Legal Services","4112","Public Transport","14/11/2017"
"Wolverhampton City Council","http://opendatacommunities.org/id/metropolitan-district-council/wolverhampton","AMAZON EU AMAZON.CO.UK","26.95","SEN Early Years Team","5999","Equipment - Purchase","14/11/2017"
"Wolverhampton City Council","http://opendatacommunities.org/id/metropolitan-district-council/wolverhampton","WWW.VIKING-DIRECT.CO.U","141.90","Revenues","5111","Stationery","14/11/2017"
"Wolverhampton City Council","http://opendatacommunities.org/id/metropolitan-district-council/wolverhampton","SELECT SERVICES","21.58","Mayoral Expenses","7216","Laundry Expenses","14/11/2017"
"Wolverhampton City Council","http://opendatacommunities.org/id/metropolitan-district-council/wolverhampton","SECURITYSAFETYPRODUCTS","480.76","Parks - Management and Admin","7393","Fixtures and Fittings - R&M","14/11/2017"
"Wolverhampton City Council","http://opendatacommunities.org/id/metropolitan-district-council/wolverhampton","ARGOS WOLVERHAMPTO","24.99","Duke Street Bungalows","5310","Equipment - Purchase","13/11/2017"
"Wolverhampton City Council","http://opendatacommunities.org/id/metropolitan-district-council/wolverhampton","TESCO DELIVERY SAVER2","3.49","Towers Outdoor Education Centre","5968","Subscriptions","13/11/2017"
"Wolverhampton City Council","http://opendatacommunities.org/id/metropolitan-district-council/wolverhampton","BCC REGISTER OFFIC","-8.33","LAC Transitions Team","9399","Client Allowances","13/11/2017"
"Wolverhampton City Council","http://opendatacommunities.org/id/metropolitan-district-council/wolverhampton","TFM FARM & COUNTRY SUP","144.00","Northicote Farm","5399","Equipment - Purchase","13/11/2017"
"Wolverhampton City Council","http://opendatacommunities.org/id/metropolitan-district-council/wolverhampton","AMAZON EU AMAZON.CO.UK","38.67","Ground Maintenance Overheads","5999","Stationery","13/11/2017"
"Wolverhampton City Council","http://opendatacommunities.org/id/metropolitan-district-council/wolverhampton","AMAZON EU AMAZON.CO.UK","38.67","Ground Maintenance Overheads","5999","Stationery","13/11/2017"
"Wolverhampton City Council","http://opendatacommunities.org/id/metropolitan-district-council/wolverhampton","AMAZON SVCS EU-UK AMAZ","276.72","Ground Maintenance Overheads","5942","Stationery","13/11/2017"
"Wolverhampton City Council","http://opendatacommunities.org/id/metropolitan-district-council/wolverhampton","DAWKES MUSIC & WINDCRA","92.94","Music Support Team","5733","Equipment - R & M","13/11/2017"
"Wolverhampton City Council","http://opendatacommunities.org/id/metropolitan-district-council/wolverhampton","ARGOS WOLVERHAMPTO","20.41","Duke Street Bungalows","5310","Equipment - Purchase","13/11/2017"
"Wolverhampton City Council","http://opendatacommunities.org/id/metropolitan-district-council/wolverhampton","THE BIRMINGHAM LAW SOC","115.00","Central Training","7997","Training Expenses","13/11/2017"
"Wolverhampton City Council","http://opendatacommunities.org/id/metropolitan-district-council/wolverhampton","Amazon UK Marketplace","9.16","Welfare Rights","5942","Equipment - Purchase","13/11/2017"
"Wolverhampton City Council","http://opendatacommunities.org/id/metropolitan-district-council/wolverhampton","REGISTRARS OFFICE","50.00","Legal Services","8299","Services - Professional Fees","13/11/2017"
"Wolverhampton City Council","http://opendatacommunities.org/id/metropolitan-district-council/wolverhampton","AMAZON UK PRIME AMZN.C","7.99","Street Lighting Maintenance","5968","Subscriptions","13/11/2017"
"Wolverhampton City Council","http://opendatacommunities.org/id/metropolitan-district-council/wolverhampton","WWW.GOINGDIGITAL.CO.UK","350.00","Technical Support","7221","Training Expenses","13/11/2017"
"Wolverhampton City Council","http://opendatacommunities.org/id/metropolitan-district-council/wolverhampton","FSPRG.UK","5.05","Technical Support","5818","Subscriptions","13/11/2017"
"Wolverhampton City Council","http://opendatacommunities.org/id/metropolitan-district-council/wolverhampton","AMAZON UK PRIME AMZN.C","6.66","Education And Access","5968","Subscriptions","13/11/2017"
"Wolverhampton City Council","http://opendatacommunities.org/id/metropolitan-district-council/wolverhampton","ASDA HOME SHOPPING","82.58","Ernest Bold Court","5411","Provisions (Not for resale)","13/11/2017"
"Wolverhampton City Council","http://opendatacommunities.org/id/metropolitan-district-council/wolverhampton","ARGOS LTD","34.57","LAC Transitions Team","5310","Client Allowances","13/11/2017"
"Wolverhampton City Council","http://opendatacommunities.org/id/metropolitan-district-council/wolverhampton","ARGOS LTD","109.93","LAC Transitions Team","5310","Client Allowances","13/11/2017"
"Wolverhampton City Council","http://opendatacommunities.org/id/metropolitan-district-council/wolverhampton","LOYD WEDNESFIELD WOLVE","250.00","Duke Street Bungalows","6011","Provisions (Not for resale)","13/11/2017"
"Wolverhampton City Council","http://opendatacommunities.org/id/metropolitan-district-council/wolverhampton","AMAZON EU AMAZON.CO.UK","13.87","Safeguarding Admin Resource","5999","Equipment - Purchase","13/11/2017"
"Wolverhampton City Council","http://opendatacommunities.org/id/metropolitan-district-council/wolverhampton","ARGOS RETAIL GROUP","-27.99","CIN/CP Social Work Unit - Area 6","5310","Section 17","13/11/2017"
"Wolverhampton City Council","http://opendatacommunities.org/id/metropolitan-district-council/wolverhampton","ARGOS RETAIL GROUP","58.32","Civic Hall Out-house Promotions","5310","Equipment - Purchase","13/11/2017"
"Wolverhampton City Council","http://opendatacommunities.org/id/metropolitan-district-council/wolverhampton","VWO.com","46.32","City Direct","7399","Equipment - Purchase","13/11/2017"
"Wolverhampton City Council","http://opendatacommunities.org/id/metropolitan-district-council/wolverhampton","PAYPAL  ASAPSTAMPSL","8.88","LAC Education Team (LACE)","7311","Stationery","13/11/2017"
"Wolverhampton City Council","http://opendatacommunities.org/id/metropolitan-district-council/wolverhampton","WWW.ONEDIRECT.CO.UK","90.98","LAC Education Team (LACE)","4812","Comms - Mobile Telephones","13/11/2017"
"Wolverhampton City Council","http://opendatacommunities.org/id/metropolitan-district-council/wolverhampton","Virgin Trains","169.30","Adoption and Residence Team & Allowances","4112","Public Transport","13/11/2017"
"Wolverhampton City Council","http://opendatacommunities.org/id/metropolitan-district-council/wolverhampton","WICKES","19.98","Central Baths","5211","Materials","13/11/2017"
"Wolverhampton City Council","http://opendatacommunities.org/id/metropolitan-district-council/wolverhampton","AMAZON SVCS EU-UK AMAZ","8.60","Upper Pendeford Farm Childrens Home","5942","Stationery","13/11/2017"
"Wolverhampton City Council","http://opendatacommunities.org/id/metropolitan-district-council/wolverhampton","AMAZON SVCS EU-UK AMAZ","14.95","Upper Pendeford Farm Childrens Home","5942","Books","13/11/2017"
"Wolverhampton City Council","http://opendatacommunities.org/id/metropolitan-district-council/wolverhampton","AMAZON SVCS EU-UK AMAZ","8.53","Upper Pendeford Farm Childrens Home","5942","Books","13/11/2017"
"Wolverhampton City Council","http://opendatacommunities.org/id/metropolitan-district-council/wolverhampton","LOYD WEDNESFIELD WOLVE","250.00","Duke Street Bungalows","6011","Provisions (Not for resale)","13/11/2017"
"Wolverhampton City Council","http://opendatacommunities.org/id/metropolitan-district-council/wolverhampton","PAYPAL  THEROTA","174.87","Civic Halls Non Direct Management A/C","5735","Computing - Purchase of Software","13/11/2017"
"Wolverhampton City Council","http://opendatacommunities.org/id/metropolitan-district-council/wolverhampton","000002200500000","250.00","CIN/CP Social Work Unit - Area 6","6011","Financial Assistance In Exceptional Circ","13/11/2017"
"Wolverhampton City Council","http://opendatacommunities.org/id/metropolitan-district-council/wolverhampton","Agder Kollektivtrafikk","9.65","GEN Y City Transnational","4131","Public Transport","13/11/2017"
"Wolverhampton City Council","http://opendatacommunities.org/id/metropolitan-district-council/wolverhampton","Le Monde Tapas AS","64.28","GEN Y City Transnational","5812","Educ Trips, Holidays, Outings, Activity","13/11/2017"
"Wolverhampton City Council","http://opendatacommunities.org/id/metropolitan-district-council/wolverhampton","ASDA  STORES 5130","38.97","Mayoral Expenses","5411","Hospitality","13/11/2017"
"Wolverhampton City Council","http://opendatacommunities.org/id/metropolitan-district-council/wolverhampton","LOYD 37 CHURCH STREET","50.00","EIP Locality 8","6011","Grant Payments","13/11/2017"
"Wolverhampton City Council","http://opendatacommunities.org/id/metropolitan-district-council/wolverhampton","POUNDWORLD RETAIL","1.67","City Direct","5310","Equipment - Purchase","13/11/2017"
"Wolverhampton City Council","http://opendatacommunities.org/id/metropolitan-district-council/wolverhampton","POUNDWORLD RETAIL","2.08","City Direct","5310","Equipment - Purchase","13/11/2017"
"Wolverhampton City Council","http://opendatacommunities.org/id/metropolitan-district-council/wolverhampton","POUNDLAND LTD 1463","0.83","City Direct","5310","Equipment - Purchase","13/11/2017"
"Wolverhampton City Council","http://opendatacommunities.org/id/metropolitan-district-council/wolverhampton","AMAZON SVCS EU-UK AMAZ","74.95","Upper Pendeford Farm Childrens Home","5942","Equipment - Health and Safety","13/11/2017"
"Wolverhampton City Council","http://opendatacommunities.org/id/metropolitan-district-council/wolverhampton","AMAZON SVCS EU-UK AMAZ","199.99","Safeguarding Board - Childrens","5942","Books","13/11/2017"
"Wolverhampton City Council","http://opendatacommunities.org/id/metropolitan-district-council/wolverhampton","AMAZON SVCS EU-UK AMAZ","497.07","Headstart Phase 3","5942","Equipment - Purchase","13/11/2017"
"Wolverhampton City Council","http://opendatacommunities.org/id/metropolitan-district-council/wolverhampton","Wix.com","46.57","Technical Support","5817","Subscriptions","13/11/2017"
"Wolverhampton City Council","http://opendatacommunities.org/id/metropolitan-district-council/wolverhampton","IMM HEALTH SURCHARGE I","100.00","CIN/CP Social Work Unit - Area 3","9399","No Recourse to Public Funds","10/11/2017"
"Wolverhampton City Council","http://opendatacommunities.org/id/metropolitan-district-council/wolverhampton","WWW.MY.MORRISONS.C","20.00","Safeguarding Admin Resource","5411","Provisions (Not for resale)","10/11/2017"
"Wolverhampton City Council","http://opendatacommunities.org/id/metropolitan-district-council/wolverhampton","B&M RETAIL","147.41","LAC Transitions Team","5310","Client Allowances","10/11/2017"
"Wolverhampton City Council","http://opendatacommunities.org/id/metropolitan-district-council/wolverhampton","ARGOS WOLVERHAMPTO","79.48","LAC Transitions Team","5310","Client Allowances","10/11/2017"
"Wolverhampton City Council","http://opendatacommunities.org/id/metropolitan-district-council/wolverhampton","ARGOS LTD","49.99","LAC Transitions Team","5310","Client Allowances","10/11/2017"
"Wolverhampton City Council","http://opendatacommunities.org/id/metropolitan-district-council/wolverhampton","FACEBK CV4Z4DWG52","6.15","Audience Development","7311","Marketing \ Non-staff advertising","10/11/2017"
"Wolverhampton City Council","http://opendatacommunities.org/id/metropolitan-district-council/wolverhampton","FACEBK BV4Z4DWG52","33.91","Audience Development","7311","Marketing \ Non-staff advertising","10/11/2017"
"Wolverhampton City Council","http://opendatacommunities.org/id/metropolitan-district-council/wolverhampton","MOONFRUIT","72.00","Audience Development","7372","Marketing \ Non-staff advertising","10/11/2017"
"Wolverhampton City Council","http://opendatacommunities.org/id/metropolitan-district-council/wolverhampton","EWETSUITS.COM","269.80","Towers Outdoor Education Centre","5941","Equipment - Purchase","10/11/2017"
"Wolverhampton City Council","http://opendatacommunities.org/id/metropolitan-district-council/wolverhampton","DECATHLON UK LTD","145.77","Towers Outdoor Education Centre","5941","Equipment - Purchase","10/11/2017"
"Wolverhampton City Council","http://opendatacommunities.org/id/metropolitan-district-council/wolverhampton","SAINSBURYS SACAT (2340","33.70","EIP Locality 4","5411","Grant Payments","10/11/2017"
"Wolverhampton City Council","http://opendatacommunities.org/id/metropolitan-district-council/wolverhampton","SAINSBURYS (2340)","2.00","EIP Locality 4","5411","Grant Payments","10/11/2017"
"Wolverhampton City Council","http://opendatacommunities.org/id/metropolitan-district-council/wolverhampton","AUTOGRILL CATERING UK","18.05","GEN Y City Transnational","5812","Educ Trips, Holidays, Outings, Activity","10/11/2017"
"Wolverhampton City Council","http://opendatacommunities.org/id/metropolitan-district-council/wolverhampton","CARVER/WOLVERHAMPTON/L","185.32","Ground Maintenance East","5211","Materials","10/11/2017"
"Wolverhampton City Council","http://opendatacommunities.org/id/metropolitan-district-council/wolverhampton","Trainline","59.24","Mental Health Assessment & Care Mgmt","4112","Public Transport","10/11/2017"
"Wolverhampton City Council","http://opendatacommunities.org/id/metropolitan-district-council/wolverhampton","AMAZON SVCS EU-UK AMAZ","20.80","Headstart - Young People Engagement","5942","Materials","10/11/2017"
"Wolverhampton City Council","http://opendatacommunities.org/id/metropolitan-district-council/wolverhampton","ASDA SUPERSTORE","67.57","Youth Offending Team","5411","Provisions (Not for resale)","10/11/2017"
"Wolverhampton City Council","http://opendatacommunities.org/id/metropolitan-district-council/wolverhampton","Trainline","41.67","Youth Offending Team","4112","Public Transport","10/11/2017"
"Wolverhampton City Council","http://opendatacommunities.org/id/metropolitan-district-council/wolverhampton","Trainline","81.09","Youth Offending Team","4112","Public Transport","10/11/2017"
"Wolverhampton City Council","http://opendatacommunities.org/id/metropolitan-district-council/wolverhampton","RIBA ENTERPRISES LTD","148.33","Corporate Procurement Unit","5942","Books","10/11/2017"
"Wolverhampton City Council","http://opendatacommunities.org/id/metropolitan-district-council/wolverhampton","WWWBHANGRABLAZECOM","20.00","WV Active Business Support","7997","Services - Professional Fees","10/11/2017"
"Wolverhampton City Council","http://opendatacommunities.org/id/metropolitan-district-council/wolverhampton","ASDA HOME SHOPPING","36.40","Upper Pendeford Farm Childrens Home","5411","Laundry Expenses","10/11/2017"
"Wolverhampton City Council","http://opendatacommunities.org/id/metropolitan-district-council/wolverhampton","WOLVERHAMPTON GRAND TH","154.50","Upper Pendeford Farm Childrens Home","7922","Educ Trips, Holidays, Outings, Activity","10/11/2017"
"Wolverhampton City Council","http://opendatacommunities.org/id/metropolitan-district-council/wolverhampton","ASDA HOME SHOPPING","-2.85","Upper Pendeford Farm Childrens Home","5411","Provisions (Not for resale)","10/11/2017"
"Wolverhampton City Council","http://opendatacommunities.org/id/metropolitan-district-council/wolverhampton","ASDA HOME SHOPPING","245.49","Upper Pendeford Farm Childrens Home","5411","Provisions (Not for resale)","10/11/2017"
"Wolverhampton City Council","http://opendatacommunities.org/id/metropolitan-district-council/wolverhampton","AMAZON SVCS EU-UK AMAZ","14.16","Safeguarding Board - Childrens","5942","Books","10/11/2017"
"Wolverhampton City Council","http://opendatacommunities.org/id/metropolitan-district-council/wolverhampton","PREMIER INN","13.25","Headstart Phase 3","3811","Subsistence","10/11/2017"
"Wolverhampton City Council","http://opendatacommunities.org/id/metropolitan-district-council/wolverhampton","PP DARRALJEVON","52.00","Wolverhampton Indoor and Open Market","5719","Equipment - Purchase","10/11/2017"
"Wolverhampton City Council","http://opendatacommunities.org/id/metropolitan-district-council/wolverhampton","CARVER/WOLVERHAMPTON/L","29.65","Cleaning of Buildings - General","5211","Materials","10/11/2017"
"Wolverhampton City Council","http://opendatacommunities.org/id/metropolitan-district-council/wolverhampton","AMAZON EU AMAZON.CO.UK","14.16","EIP Locality 1","5999","Equipment - Purchase","10/11/2017"
"Wolverhampton City Council","http://opendatacommunities.org/id/metropolitan-district-council/wolverhampton","AMAZON EU AMAZON.CO.UK","19.18","Technical Support","5999","Equipment - Purchase","10/11/2017"
"Wolverhampton City Council","http://opendatacommunities.org/id/metropolitan-district-council/wolverhampton","WIX.COM","93.13","Technical Support","5968","Subscriptions","10/11/2017"
"Wolverhampton City Council","http://opendatacommunities.org/id/metropolitan-district-council/wolverhampton","WILKO RETAIL LIMIT","24.87","EIP Locality 3","5722","Grant Payments","10/11/2017"
"Wolverhampton City Council","http://opendatacommunities.org/id/metropolitan-district-council/wolverhampton","Virgin Trains","126.60","Environmental Health - Pub Prot - Gen","4112","Services - Fees and Charges","10/11/2017"
"Wolverhampton City Council","http://opendatacommunities.org/id/metropolitan-district-council/wolverhampton","CT WOLVERHAMPTON","50.00","CIN/CP Social Work Unit - Area 6","8398","Section 17","10/11/2017"
"Wolverhampton City Council","http://opendatacommunities.org/id/metropolitan-district-council/wolverhampton","CT WOLVERHAMPTON","50.00","CIN/CP Social Work Unit - Area 6","8398","Section 17","10/11/2017"
"Wolverhampton City Council","http://opendatacommunities.org/id/metropolitan-district-council/wolverhampton","WWW.WMCA.CO.UK","1806.42","Travel Scratch Cards & Rail Warrants","4112","Public Transport","10/11/2017"
"Wolverhampton City Council","http://opendatacommunities.org/id/metropolitan-district-council/wolverhampton","WEST MID TRAVEL","869.10","Travel Scratch Cards & Rail Warrants","4131","Public Transport","10/11/2017"
"Wolverhampton City Council","http://opendatacommunities.org/id/metropolitan-district-council/wolverhampton","Trainline","5.56","CIN/CP Social Work Unit - Area 4","4112","Section 17","10/11/2017"
"Wolverhampton City Council","http://opendatacommunities.org/id/metropolitan-district-council/wolverhampton","GRO HM PASSPORT OFFICE","23.40","Legal Services","9399","Services - Fees and Charges","10/11/2017"
"Wolverhampton City Council","http://opendatacommunities.org/id/metropolitan-district-council/wolverhampton","PO WOLVERHAMPTON 0169","10.00","Legal Services","6011","Services - Professional Fees","10/11/2017"
"Wolverhampton City Council","http://opendatacommunities.org/id/metropolitan-district-council/wolverhampton","ASDA SUPERSTORE","21.64","EIP Locality 5","5411","Grant Payments","10/11/2017"
"Wolverhampton City Council","http://opendatacommunities.org/id/metropolitan-district-council/wolverhampton","UTILITA ENERGY LIMITED","20.20","EIP Locality 5","4900","Grant Payments","10/11/2017"
"Wolverhampton City Council","http://opendatacommunities.org/id/metropolitan-district-council/wolverhampton","Virgin Trains","108.60","Planning","4112","Public Transport","10/11/2017"
"Wolverhampton City Council","http://opendatacommunities.org/id/metropolitan-district-council/wolverhampton","WWW.WMCA.CO.UK","220.00","CIN/CP Social Work Unit - Area 3","9399","Section 17","10/11/2017"
"Wolverhampton City Council","http://opendatacommunities.org/id/metropolitan-district-council/wolverhampton","WAITROSE 696","7.80","CIN/CP Social Work Unit - Area 3","5411","Section 17","10/11/2017"
"Wolverhampton City Council","http://opendatacommunities.org/id/metropolitan-district-council/wolverhampton","MUSIC WEEK","249.00","Civic Halls Non Direct Management A/C","2741","Subscriptions","09/11/2017"
"Wolverhampton City Council","http://opendatacommunities.org/id/metropolitan-district-council/wolverhampton","EE & T-MOBILE","131.76","Civic Halls Non Direct Management A/C","4814","Comms - Telephone Call charges","09/11/2017"
"Wolverhampton City Council","http://opendatacommunities.org/id/metropolitan-district-council/wolverhampton","METROPOLIS BUS PUBLISH","200.00","Audience Development","2741","Marketing \ Non-staff advertising","09/11/2017"
"Wolverhampton City Council","http://opendatacommunities.org/id/metropolitan-district-council/wolverhampton","1&1 INTERNET LIMITED","95.88","Headstart - Learning Technologies Team","4816","Computing - Purchase of Software","09/11/2017"
"Wolverhampton City Council","http://opendatacommunities.org/id/metropolitan-district-council/wolverhampton","Virgin Trains","134.60","Parent / Partnership Service","4112","Public Transport","09/11/2017"
"Wolverhampton City Council","http://opendatacommunities.org/id/metropolitan-district-council/wolverhampton","POST OFFICE COUNTER","19.89","Parent / Partnership Service","9402","Comms - Postage","09/11/2017"
"Wolverhampton City Council","http://opendatacommunities.org/id/metropolitan-district-council/wolverhampton","AMAZON SVCS EU-UK AMAZ","15.25","Headstart - Young People Engagement","5942","Stationery","09/11/2017"
"Wolverhampton City Council","http://opendatacommunities.org/id/metropolitan-district-council/wolverhampton","Trainline","88.13","CIN/CP Social Work Unit - Area 4","4112","Section 17","09/11/2017"
"Wolverhampton City Council","http://opendatacommunities.org/id/metropolitan-district-council/wolverhampton","WATERSTONES","178.00","Workforce Development","5942","Training Expenses","09/11/2017"
"Wolverhampton City Council","http://opendatacommunities.org/id/metropolitan-district-council/wolverhampton","WWW.SEVERNTRENTSEARCHE","325.00","Disposal Costs","4900","Services - Professional Fees","09/11/2017"
"Wolverhampton City Council","http://opendatacommunities.org/id/metropolitan-district-council/wolverhampton","AMAZON SVCS EU-UK AMAZ","48.27","Headstart - Young People Engagement","5942","Equipment - Purchase","09/11/2017"
"Wolverhampton City Council","http://opendatacommunities.org/id/metropolitan-district-council/wolverhampton","NATIONALITY DIRECTORAT","1282.00","IMPACT","9399","Services - Fees and Charges","09/11/2017"
"Wolverhampton City Council","http://opendatacommunities.org/id/metropolitan-district-council/wolverhampton","Virgin Trains","117.65","HR Advice","4112","Public Transport","09/11/2017"
"Wolverhampton City Council","http://opendatacommunities.org/id/metropolitan-district-council/wolverhampton","WWW.SEVERNTRENTSEARCHE","325.00","Disposal Costs","4900","Services - Professional Fees","09/11/2017"
"Wolverhampton City Council","http://opendatacommunities.org/id/metropolitan-district-council/wolverhampton","WWW.SEVERNTRENTSEARCHE","325.00","Disposal Costs","4900","Services - Professional Fees","09/11/2017"
"Wolverhampton City Council","http://opendatacommunities.org/id/metropolitan-district-council/wolverhampton","WWW.SEVERNTRENTSEARCHE","325.00","Disposal Costs","4900","Services - Professional Fees","09/11/2017"
"Wolverhampton City Council","http://opendatacommunities.org/id/metropolitan-district-council/wolverhampton","WWW.SEVERNTRENTSEARCHE","490.00","Disposal Costs","4900","Services - Professional Fees","09/11/2017"
"Wolverhampton City Council","http://opendatacommunities.org/id/metropolitan-district-council/wolverhampton","AMAZON SVCS EU-UK AMAZ","115.63","SEN Early Years Team","5942","Equipment - Purchase","09/11/2017"
"Wolverhampton City Council","http://opendatacommunities.org/id/metropolitan-district-council/wolverhampton","SP  CHARFLEET BOOKS","117.00","CIN/CP Social Work Unit - Area 4","5734","Stationery","09/11/2017"
"Wolverhampton City Council","http://opendatacommunities.org/id/metropolitan-district-council/wolverhampton","Trainline","94.86","CIN/CP Social Work Unit - Area 8","4112","Section 17","09/11/2017"
"Wolverhampton City Council","http://opendatacommunities.org/id/metropolitan-district-council/wolverhampton","AMAZON SVCS EU-UK AMAZ","44.50","Parks - East Area Management","5942","Equipment - Purchase","09/11/2017"
"Wolverhampton City Council","http://opendatacommunities.org/id/metropolitan-district-council/wolverhampton","LOYD WEDNESFIELD WOLVE","250.00","Duke Street Bungalows","6011","Provisions (Not for resale)","09/11/2017"
"Wolverhampton City Council","http://opendatacommunities.org/id/metropolitan-district-council/wolverhampton","Virgin Trains","194.30","Audit Services","4112","Public Transport","09/11/2017"
"Wolverhampton City Council","http://opendatacommunities.org/id/metropolitan-district-council/wolverhampton","AMAZON SVCS EU-UK AMAZ","4.16","Safeguarding Board - Childrens","5942","Books","09/11/2017"
"Wolverhampton City Council","http://opendatacommunities.org/id/metropolitan-district-council/wolverhampton","CITYFLEET/COMCAB","20.17","Headstart Phase 3","4121","Public Transport","09/11/2017"
"Wolverhampton City Council","http://opendatacommunities.org/id/metropolitan-district-council/wolverhampton","PREMIER INN","7.12","Headstart Phase 3","3811","Subsistence","09/11/2017"
"Wolverhampton City Council","http://opendatacommunities.org/id/metropolitan-district-council/wolverhampton","TAXI FARE BY VERIFONE","11.00","Headstart Phase 3","4121","Public Transport","09/11/2017"
"Wolverhampton City Council","http://opendatacommunities.org/id/metropolitan-district-council/wolverhampton","SCREWFIX WOLVERHAM","5.82","Caretakers Community Centre","5211","R&M - Departmental planned (external)","09/11/2017"
"Wolverhampton City Council","http://opendatacommunities.org/id/metropolitan-district-council/wolverhampton","AMAZON SVCS EU-UK AMAZ","13.99","Technical Support","5942","Books","09/11/2017"
"Wolverhampton City Council","http://opendatacommunities.org/id/metropolitan-district-council/wolverhampton","Amazon EU","10.99","Technical Support","5969","Equipment - Purchase","09/11/2017"
"Wolverhampton City Council","http://opendatacommunities.org/id/metropolitan-district-council/wolverhampton","THE CONSORTIUM/WMS","161.75","Education And Access","5968","Materials","09/11/2017"
"Wolverhampton City Council","http://opendatacommunities.org/id/metropolitan-district-council/wolverhampton","PAYPAL  MOBILEBITSU","3.96","Environmental Health - Pub Prot - Gen","5099","Equipment - Purchase","09/11/2017"
"Wolverhampton City Council","http://opendatacommunities.org/id/metropolitan-district-council/wolverhampton","SCREWFIX DIRECT LT","57.49","Play General","5211","Materials","09/11/2017"
"Wolverhampton City Council","http://opendatacommunities.org/id/metropolitan-district-council/wolverhampton","BRITANNIA","453.33","CIN/CP Social Work Unit - Area 5","7011","Section 17","09/11/2017"
"Wolverhampton City Council","http://opendatacommunities.org/id/metropolitan-district-council/wolverhampton","Agoda Reservation","200.90","HR Advice","4722","Accommodation Costs","09/11/2017"
"Wolverhampton City Council","http://opendatacommunities.org/id/metropolitan-district-council/wolverhampton","PARK BREWERY SHOP","135.00","Mayoral Expenses","5813","Hospitality","09/11/2017"
"Wolverhampton City Council","http://opendatacommunities.org/id/metropolitan-district-council/wolverhampton","ASDA SUPERSTORE","41.67","Mayoral Expenses","5411","Hospitality","09/11/2017"
"Wolverhampton City Council","http://opendatacommunities.org/id/metropolitan-district-council/wolverhampton","ASDA SUPERSTORE","47.15","Mayoral Expenses","5411","Provisions (Not for resale)","09/11/2017"
"Wolverhampton City Council","http://opendatacommunities.org/id/metropolitan-district-council/wolverhampton","WWW.REDSPOTTEDHANK","203.00","Macmillan Welfare Rights","4112","Public Transport","09/11/2017"
"Wolverhampton City Council","http://opendatacommunities.org/id/metropolitan-district-council/wolverhampton","WWW.REDSPOTTEDHANK","97.20","Macmillan Welfare Rights","4112","Public Transport","09/11/2017"
"Wolverhampton City Council","http://opendatacommunities.org/id/metropolitan-district-council/wolverhampton","WWW.REDSPOTTEDHANK","114.70","Macmillan Welfare Rights","4112","Public Transport","09/11/2017"
"Wolverhampton City Council","http://opendatacommunities.org/id/metropolitan-district-council/wolverhampton","ARGOS LTD","29.99","Childrens with Disabilities Team","5310","Section 17","09/11/2017"
"Wolverhampton City Council","http://opendatacommunities.org/id/metropolitan-district-council/wolverhampton","Trainline","63.44","LAC Transitions Team","4112","Client Allowances","09/11/2017"
"Wolverhampton City Council","http://opendatacommunities.org/id/metropolitan-district-council/wolverhampton","LOVE2SHOP.CO.UK","203.50","Healthy Lifestyles Team","8641","Educ Trips, Holidays, Outings, Activity","09/11/2017"
"Wolverhampton City Council","http://opendatacommunities.org/id/metropolitan-district-council/wolverhampton","REGISTRARS OFFICE","10.00","Adoption and Residence Team & Allowances","8299","Services - Fees and Charges","09/11/2017"
"Wolverhampton City Council","http://opendatacommunities.org/id/metropolitan-district-council/wolverhampton","PAYPAL  PROJECTED","91.80","Strategic ICTS (ICT Serv Budget)","8931","Equipment - Purchase","09/11/2017"
"Wolverhampton City Council","http://opendatacommunities.org/id/metropolitan-district-council/wolverhampton","HIGHFIELD HOUSE HO","385.00","CIN/CP Social Work Unit - Area 3","7011","No Recourse to Public Funds","09/11/2017"
"Wolverhampton City Council","http://opendatacommunities.org/id/metropolitan-district-council/wolverhampton","HIGHFIELD HOUSE HO","165.00","CIN/CP Social Work Unit - Area 3","7011","No Recourse to Public Funds","09/11/2017"
"Wolverhampton City Council","http://opendatacommunities.org/id/metropolitan-district-council/wolverhampton","TFM FARM & COUNTRY SUP","-26.12","Northicote Farm","5399","Equipment - R & M","09/11/2017"
"Wolverhampton City Council","http://opendatacommunities.org/id/metropolitan-district-council/wolverhampton","TFM FARM & COUNTRY SUP","132.88","Northicote Farm","5399","Materials","09/11/2017"
"Wolverhampton City Council","http://opendatacommunities.org/id/metropolitan-district-council/wolverhampton","TFM FARM & COUNTRY SUP","203.80","Northicote Farm","5399","Equipment - R & M","09/11/2017"
"Wolverhampton City Council","http://opendatacommunities.org/id/metropolitan-district-council/wolverhampton","CUMMINGS BROTHERS LOCK","56.25","Winter Maintenance","7399","Materials","08/11/2017"
"Wolverhampton City Council","http://opendatacommunities.org/id/metropolitan-district-council/wolverhampton","DEBENHAMS.COM","70.00","Mayoral Expenses","5311","Clothing / Uniforms","08/11/2017"
"Wolverhampton City Council","http://opendatacommunities.org/id/metropolitan-district-council/wolverhampton","WYNVR.CO.UK HOL ACCOM","385.00","Adoption and Residence Team & Allowances","4722","Accommodation Costs","08/11/2017"
"Wolverhampton City Council","http://opendatacommunities.org/id/metropolitan-district-council/wolverhampton","BRATHAY HALL SERV","195.83","Towers Outdoor Education Centre","7392","Equipment - Purchase","08/11/2017"
"Wolverhampton City Council","http://opendatacommunities.org/id/metropolitan-district-council/wolverhampton","BCC REGISTER OFFIC","12.50","LAC Transitions Team","9399","Client Allowances","08/11/2017"
"Wolverhampton City Council","http://opendatacommunities.org/id/metropolitan-district-council/wolverhampton","REDWINGS LODGE","124.87","Homeless Families","7011","Accommodation Costs","08/11/2017"
"Wolverhampton City Council","http://opendatacommunities.org/id/metropolitan-district-council/wolverhampton","EB  UNDERSTANDING CONT","107.38","EIP Locality 2","7399","Training Expenses","08/11/2017"
"Wolverhampton City Council","http://opendatacommunities.org/id/metropolitan-district-council/wolverhampton","EB  DOMESTIC ABUSE AWA","192.34","EIP Locality 2","7399","Training Expenses","08/11/2017"
"Wolverhampton City Council","http://opendatacommunities.org/id/metropolitan-district-council/wolverhampton","E01510300000000","200.00","MASH","6011","Section 17","08/11/2017"
"Wolverhampton City Council","http://opendatacommunities.org/id/metropolitan-district-council/wolverhampton","WWW.GAMBLINGCOMMIS","185.00","Employment Programmes","8999","Services - Professional Fees","08/11/2017"
"Wolverhampton City Council","http://opendatacommunities.org/id/metropolitan-district-council/wolverhampton","AMAZON SVCS EU-UK AMAZ","449.00","Technical Support","5942","Equipment - Purchase","08/11/2017"
"Wolverhampton City Council","http://opendatacommunities.org/id/metropolitan-district-council/wolverhampton","AMAZON SVCS EU-UK AMAZ","23.50","Technical Support","5942","Computing - Purchase of Hardware","08/11/2017"
"Wolverhampton City Council","http://opendatacommunities.org/id/metropolitan-district-council/wolverhampton","AMAZON SVCS EU-UK AMAZ","133.90","Technical Support","5942","Equipment - Purchase","08/11/2017"
"Wolverhampton City Council","http://opendatacommunities.org/id/metropolitan-district-council/wolverhampton","GO CARZ","-6.82","CIN/CP Social Work Unit - Area 5","4121","Section 17","08/11/2017"
"Wolverhampton City Council","http://opendatacommunities.org/id/metropolitan-district-council/wolverhampton","THE COAL AUTHORITY","404.33","Disposal Costs","9399","Services - Fees and Charges","08/11/2017"
"Wolverhampton City Council","http://opendatacommunities.org/id/metropolitan-district-council/wolverhampton","E01350800000000","10.00","Ernest Bold Court","6011","Cleaning Supplies and Materials","08/11/2017"
"Wolverhampton City Council","http://opendatacommunities.org/id/metropolitan-district-council/wolverhampton","J VAN VLIET BIRMINGHAM","25.00","Discretionary Fund","5399","Materials","08/11/2017"
"Wolverhampton City Council","http://opendatacommunities.org/id/metropolitan-district-council/wolverhampton","WOBURN TANDOORI","35.08","Headstart Phase 3","5812","Subsistence","08/11/2017"
"Wolverhampton City Council","http://opendatacommunities.org/id/metropolitan-district-council/wolverhampton","TAXI FARE BY VERIFONE","14.18","Headstart Phase 3","4121","Public Transport","08/11/2017"
"Wolverhampton City Council","http://opendatacommunities.org/id/metropolitan-district-council/wolverhampton","CMT (UK) LTD - GLASGOW","5.25","Headstart Phase 3","4121","Public Transport","08/11/2017"
"Wolverhampton City Council","http://opendatacommunities.org/id/metropolitan-district-council/wolverhampton","WWW.ARGOS.CO.UK","66.66","CIN/CP Social Work Unit - Area 2","5310","Section 17","08/11/2017"
"Wolverhampton City Council","http://opendatacommunities.org/id/metropolitan-district-council/wolverhampton","WWW.ARGOS.CO.UK","152.97","CIN/CP Social Work Unit - Area 2","5310","Section 17","08/11/2017"
"Wolverhampton City Council","http://opendatacommunities.org/id/metropolitan-district-council/wolverhampton","CT WOLVERHAMPTON","77.50","CIN/CP Social Work Unit - Area 6","8398","Section 17","08/11/2017"
"Wolverhampton City Council","http://opendatacommunities.org/id/metropolitan-district-council/wolverhampton","MAN. AIRPORT CAR PARKS","51.25","GEN Y City Transnational","7523","Car Allowances","08/11/2017"
"Wolverhampton City Council","http://opendatacommunities.org/id/metropolitan-district-council/wolverhampton","XL DISPLAYS LTD","74.00","Communications & Marketing - General","5099","Equipment - Purchase","08/11/2017"
"Wolverhampton City Council","http://opendatacommunities.org/id/metropolitan-district-council/wolverhampton","RINBOW","135.62","Headstart Phase 3","5943","Furniture","08/11/2017"
"Wolverhampton City Council","http://opendatacommunities.org/id/metropolitan-district-council/wolverhampton","RINBOW","115.62","Headstart Phase 3","5943","Furniture","08/11/2017"
"Wolverhampton City Council","http://opendatacommunities.org/id/metropolitan-district-council/wolverhampton","FTPE WEBTIS 1","68.20","HR Advice","4112","Public Transport","08/11/2017"
"Wolverhampton City Council","http://opendatacommunities.org/id/metropolitan-district-council/wolverhampton","Trainline","117.81","LAC Education Team (LACE)","4112","Public Transport","08/11/2017"
"Wolverhampton City Council","http://opendatacommunities.org/id/metropolitan-district-council/wolverhampton","WWW.ARGOS.CO.UK","210.13","LAC Transitions Team","5310","Client Allowances","08/11/2017"
"Wolverhampton City Council","http://opendatacommunities.org/id/metropolitan-district-council/wolverhampton","Amazon UK Marketplace","11.74","Public Health Support Costs","5942","Catering","08/11/2017"
"Wolverhampton City Council","http://opendatacommunities.org/id/metropolitan-district-council/wolverhampton","B & Q 1243","16.06","Public Conveniences","5211","Materials","08/11/2017"
"Wolverhampton City Council","http://opendatacommunities.org/id/metropolitan-district-council/wolverhampton","WEST COAST TRAINS","12.00","Managing Director","7523","Car Allowances","08/11/2017"
"Wolverhampton City Council","http://opendatacommunities.org/id/metropolitan-district-council/wolverhampton","CROWN PROPERTY SERVICE","280.00","CIN/CP Social Work Unit - Area 3","7011","Section 17","08/11/2017"
"Wolverhampton City Council","http://opendatacommunities.org/id/metropolitan-district-council/wolverhampton","WWW.STAFFORDBC.GOV.UK","99.00","Upper Pendeford Farm Childrens Home","7922","Educ Trips, Holidays, Outings, Activity","08/11/2017"
"Wolverhampton City Council","http://opendatacommunities.org/id/metropolitan-district-council/wolverhampton","W M MORRISONS.COM","73.31","Discretionary Fund","5411","Materials","08/11/2017"
"Wolverhampton City Council","http://opendatacommunities.org/id/metropolitan-district-council/wolverhampton","CARVER/WOLVERHAMPTON/L","34.07","Creative Studies Delivery Area","5211","Materials","08/11/2017"
"Wolverhampton City Council","http://opendatacommunities.org/id/metropolitan-district-council/wolverhampton","PREMIER INN","5.82","Curatorial - Cultural Learning","3811","Subsistence","08/11/2017"
"Wolverhampton City Council","http://opendatacommunities.org/id/metropolitan-district-council/wolverhampton","POUNDSTRETCHER 703","15.80","LAC Transitions Team","5714","Client Allowances","08/11/2017"
"Wolverhampton City Council","http://opendatacommunities.org/id/metropolitan-district-council/wolverhampton","CITYFLEET/COMCAB","14.00","Headstart Phase 3","4121","Public Transport","08/11/2017"
"Wolverhampton City Council","http://opendatacommunities.org/id/metropolitan-district-council/wolverhampton","TESCO STORES 5194","106.18","Towers Outdoor Education Centre","5411","Provisions (Not for resale)","07/11/2017"
"Wolverhampton City Council","http://opendatacommunities.org/id/metropolitan-district-council/wolverhampton","FUEL CARD SERVICES LTD","323.48","Towers Outdoor Education Centre","7399","Petrol","07/11/2017"
"Wolverhampton City Council","http://opendatacommunities.org/id/metropolitan-district-council/wolverhampton","HARLECH FOODSERVICE LT","179.35","Towers Outdoor Education Centre","5422","Provisions (Not for resale)","07/11/2017"
"Wolverhampton City Council","http://opendatacommunities.org/id/metropolitan-district-council/wolverhampton","SPAR SIOP TANDDERWEN","5.70","Towers Outdoor Education Centre","5411","Provisions (Not for resale)","07/11/2017"
"Wolverhampton City Council","http://opendatacommunities.org/id/metropolitan-district-council/wolverhampton","SPAR SIOP TANDDERWEN","283.24","Towers Outdoor Education Centre","5411","Provisions (Not for resale)","07/11/2017"
"Wolverhampton City Council","http://opendatacommunities.org/id/metropolitan-district-council/wolverhampton","C L JONES LIMITED","236.51","Towers Outdoor Education Centre","5211","Fixtures and Fittings - Purchases","07/11/2017"
"Wolverhampton City Council","http://opendatacommunities.org/id/metropolitan-district-council/wolverhampton","HN NUTTALL LTD","292.34","Towers Outdoor Education Centre","5085","Provisions (Not for resale)","07/11/2017"
"Wolverhampton City Council","http://opendatacommunities.org/id/metropolitan-district-council/wolverhampton","NOTEMACHINE","250.00","CIN/CP Social Work Unit - Area 6","6011","Financial Assistance In Exceptional Circ","07/11/2017"
"Wolverhampton City Council","http://opendatacommunities.org/id/metropolitan-district-council/wolverhampton","Trainline","61.71","CIN/CP Social Work Unit - Area 6","4112","Section 17","07/11/2017"
"Wolverhampton City Council","http://opendatacommunities.org/id/metropolitan-district-council/wolverhampton","BLOXWICH  SST","7.00","Economic Development","4112","Public Transport","07/11/2017"
"Wolverhampton City Council","http://opendatacommunities.org/id/metropolitan-district-council/wolverhampton","PRONTAPRINT WOLVERHAMP","450.00","Headstart - Learning Technologies Team","2741","Publications","07/11/2017"
"Wolverhampton City Council","http://opendatacommunities.org/id/metropolitan-district-council/wolverhampton","WWW.ASDA-PHOTO.CO.UK","112.92","Headstart Hubs","2741","Materials","07/11/2017"
"Wolverhampton City Council","http://opendatacommunities.org/id/metropolitan-district-council/wolverhampton","CAPITAL H&B LTD","242.75","IMPACT","7230","Equipment - Purchase","07/11/2017"
"Wolverhampton City Council","http://opendatacommunities.org/id/metropolitan-district-council/wolverhampton","COUNTER SOLUTIONS","162.50","Education Business Partnership","5811","Catering","07/11/2017"
"Wolverhampton City Council","http://opendatacommunities.org/id/metropolitan-district-council/wolverhampton","CARD FACTORY","2.12","City Direct","5947","Equipment - Purchase","07/11/2017"
"Wolverhampton City Council","http://opendatacommunities.org/id/metropolitan-district-council/wolverhampton","PAYPAL  ARC","189.00","LAC Education Team (LACE)","8398","Training Expenses","07/11/2017"
"Wolverhampton City Council","http://opendatacommunities.org/id/metropolitan-district-council/wolverhampton","ASDA SUPERSTORE","32.09","Youth Offending Team","5411","Provisions (Not for resale)","07/11/2017"
"Wolverhampton City Council","http://opendatacommunities.org/id/metropolitan-district-council/wolverhampton","WEST COAST TRAINS","34.00","Managing Director","4112","Public Transport","07/11/2017"
"Wolverhampton City Council","http://opendatacommunities.org/id/metropolitan-district-council/wolverhampton","WWW.JUSTGLOVES.CO.UK","110.00","Central Baths","5999","Equipment - Purchase","07/11/2017"
"Wolverhampton City Council","http://opendatacommunities.org/id/metropolitan-district-council/wolverhampton","CUMMINGS BROTHERS LOCK","26.00","Beckminster","7399","Equipment - Purchase","07/11/2017"
"Wolverhampton City Council","http://opendatacommunities.org/id/metropolitan-district-council/wolverhampton","GO CARZ","12.90","MASH","4121","Section 17","07/11/2017"
"Wolverhampton City Council","http://opendatacommunities.org/id/metropolitan-district-council/wolverhampton","GO CARZ","13.11","MASH","4121","Section 17","07/11/2017"
"Wolverhampton City Council","http://opendatacommunities.org/id/metropolitan-district-council/wolverhampton","TESCO STORES 2720","10.98","Headstart Phase 3","5411","Subsistence","07/11/2017"
"Wolverhampton City Council","http://opendatacommunities.org/id/metropolitan-district-council/wolverhampton","WWW.WMCA.CO.UK","54.50","IMPACT","9399","Client Transport","07/11/2017"
"Wolverhampton City Council","http://opendatacommunities.org/id/metropolitan-district-council/wolverhampton","SCREWFIX DIRECT LT","19.16","Hickman Avenue Depot","5211","R&M - Departmental planned (external)","07/11/2017"
"Wolverhampton City Council","http://opendatacommunities.org/id/metropolitan-district-council/wolverhampton","AMAZON SVCS EU-UK AMAZ","7.98","Blakenhall Commty & Healthy Living Ctr","5942","Equipment - Purchase","07/11/2017"
"Wolverhampton City Council","http://opendatacommunities.org/id/metropolitan-district-council/wolverhampton","B & Q 1243","6.00","Learning Disabilities Management","5211","Equipment - R & M","07/11/2017"
"Wolverhampton City Council","http://opendatacommunities.org/id/metropolitan-district-council/wolverhampton","B & Q 1243","10.93","Bradley Resource Centre","5211","Equipment - R & M","07/11/2017"
"Wolverhampton City Council","http://opendatacommunities.org/id/metropolitan-district-council/wolverhampton","ASDA HOME SHOPPING","-0.30","Ernest Bold Court","5411","Provisions (Not for resale)","07/11/2017"
"Wolverhampton City Council","http://opendatacommunities.org/id/metropolitan-district-council/wolverhampton","ASDA HOME SHOPPING","77.06","Ernest Bold Court","5411","Provisions (Not for resale)","07/11/2017"
"Wolverhampton City Council","http://opendatacommunities.org/id/metropolitan-district-council/wolverhampton","GO CARZ","7.24","CIN/CP Social Work Unit - Area 5","4121","Section 17","07/11/2017"
"Wolverhampton City Council","http://opendatacommunities.org/id/metropolitan-district-council/wolverhampton","OFFICIALRECORDCOUK","15.98","CIN/CP Social Work Unit - Area 7","7392","Section 17","07/11/2017"
"Wolverhampton City Council","http://opendatacommunities.org/id/metropolitan-district-council/wolverhampton","J VAN VLIET BIRMINGHAM","57.60","Discretionary Fund","5399","Materials","07/11/2017"
"Wolverhampton City Council","http://opendatacommunities.org/id/metropolitan-district-council/wolverhampton","J VAN VLIET BIRMINGHAM","38.85","Creative Studies Delivery Area","5399","Materials for resale","07/11/2017"
"Wolverhampton City Council","http://opendatacommunities.org/id/metropolitan-district-council/wolverhampton","BRITANNIA","139.50","CIN/CP Social Work Unit - Area 5","7011","Section 17","07/11/2017"
"Wolverhampton City Council","http://opendatacommunities.org/id/metropolitan-district-council/wolverhampton","MEDIA & COMMUNICATIONS","275.00","Revenues","4812","Comms - Mobile Telephones","07/11/2017"
"Wolverhampton City Council","http://opendatacommunities.org/id/metropolitan-district-council/wolverhampton","Virgin Trains","153.20","Planning","4112","Public Transport","07/11/2017"
"Wolverhampton City Council","http://opendatacommunities.org/id/metropolitan-district-council/wolverhampton","ASDA HOME SHOPPING","68.77","Upper Pendeford Farm Childrens Home","5411","Provisions (Not for resale)","06/11/2017"
"Wolverhampton City Council","http://opendatacommunities.org/id/metropolitan-district-council/wolverhampton","ASDA HOME SHOPPING","0.72","Upper Pendeford Farm Childrens Home","5411","Provisions (Not for resale)","06/11/2017"
"Wolverhampton City Council","http://opendatacommunities.org/id/metropolitan-district-council/wolverhampton","WEST COAST TRAINS","18.00","Mental Health Assessment & Care Mgmt","4112","Public Transport","06/11/2017"
"Wolverhampton City Council","http://opendatacommunities.org/id/metropolitan-district-council/wolverhampton","ARRIVA TRAINS WALE","18.90","Art Gallery","4112","Public Transport","06/11/2017"
"Wolverhampton City Council","http://opendatacommunities.org/id/metropolitan-district-council/wolverhampton","WM MORRISONS","5.83","Headstart Phase 3","5411","Subsistence","06/11/2017"
"Wolverhampton City Council","http://opendatacommunities.org/id/metropolitan-district-council/wolverhampton","PREMIER INN","356.67","Headstart Phase 3","3811","Accommodation Costs","06/11/2017"
"Wolverhampton City Council","http://opendatacommunities.org/id/metropolitan-district-council/wolverhampton","FACEBK 964V4DNG52","20.08","Audience Development","7311","Marketing \ Non-staff advertising","06/11/2017"
"Wolverhampton City Council","http://opendatacommunities.org/id/metropolitan-district-council/wolverhampton","POST OFFICE COUNTER","191.50","Adoption and Residence Team & Allowances","9402","Comms - Postage","06/11/2017"
"Wolverhampton City Council","http://opendatacommunities.org/id/metropolitan-district-council/wolverhampton","POST OFFICE COUNTER","4.40","Adoption and Residence Team & Allowances","9402","Comms - Postage","06/11/2017"
"Wolverhampton City Council","http://opendatacommunities.org/id/metropolitan-district-council/wolverhampton","ENVATOMARKET37924519","16.57","Communications & Marketing - General","5815","Computing - Purchase of Software","06/11/2017"
"Wolverhampton City Council","http://opendatacommunities.org/id/metropolitan-district-council/wolverhampton","AMZ Amazon US","-20.00","Aldersley Leisure Village","5999","Equipment - Purchase","06/11/2017"
"Wolverhampton City Council","http://opendatacommunities.org/id/metropolitan-district-council/wolverhampton","AMZ Amazon US","-102.70","Aldersley Leisure Village","5999","Equipment - Purchase","06/11/2017"
"Wolverhampton City Council","http://opendatacommunities.org/id/metropolitan-district-council/wolverhampton","AMAZON SVCS EU-UK AMAZ","12.20","Bert Williams Leisure Centre","5942","Books","06/11/2017"
"Wolverhampton City Council","http://opendatacommunities.org/id/metropolitan-district-council/wolverhampton","ASDA SUPERSTORE","1.48","Mayoral Expenses","5411","Hospitality","06/11/2017"
"Wolverhampton City Council","http://opendatacommunities.org/id/metropolitan-district-council/wolverhampton","E01353600000000","100.00","Childrens with Disabilities Team","6011","No Recourse to Public Funds","06/11/2017"
"Wolverhampton City Council","http://opendatacommunities.org/id/metropolitan-district-council/wolverhampton","E01353600000000","250.00","Childrens with Disabilities Team","6011","No Recourse to Public Funds","06/11/2017"
"Wolverhampton City Council","http://opendatacommunities.org/id/metropolitan-district-council/wolverhampton","ASDA SUPERSTORE","15.60","Youth Offending Team","5411","Provisions (Not for resale)","06/11/2017"
"Wolverhampton City Council","http://opendatacommunities.org/id/metropolitan-district-council/wolverhampton","Trainline","29.33","Headstart Phase 3","4112","Public Transport","06/11/2017"
"Wolverhampton City Council","http://opendatacommunities.org/id/metropolitan-district-council/wolverhampton","PP DARRALJEVON","86.50","Wolverhampton Indoor and Open Market","5719","Equipment - Purchase","06/11/2017"
"Wolverhampton City Council","http://opendatacommunities.org/id/metropolitan-district-council/wolverhampton","YOUNG`S SHOE REPAIRS L","30.30","Wolverhampton Indoor and Open Market","7251","Fixtures and Fittings - R&M","06/11/2017"
"Wolverhampton City Council","http://opendatacommunities.org/id/metropolitan-district-council/wolverhampton","Trainline","81.09","Youth Offending Team","4112","Public Transport","06/11/2017"
"Wolverhampton City Council","http://opendatacommunities.org/id/metropolitan-district-council/wolverhampton","PREMIER INN","213.33","Homeless Families","3811","Accommodation Costs","06/11/2017"
"Wolverhampton City Council","http://opendatacommunities.org/id/metropolitan-district-council/wolverhampton","BOOKWHEN","9.00","Education And Access","7372","Computing - Purchase of Software","06/11/2017"
"Wolverhampton City Council","http://opendatacommunities.org/id/metropolitan-district-council/wolverhampton","ASDA SUPERSTORE","10.00","Children & Young People Support Costs","5411","Provisions (Not for resale)","06/11/2017"
"Wolverhampton City Council","http://opendatacommunities.org/id/metropolitan-district-council/wolverhampton","WIX.COM","93.13","Technical Support","5968","Subscriptions","06/11/2017"
"Wolverhampton City Council","http://opendatacommunities.org/id/metropolitan-district-council/wolverhampton","Wix.com","186.26","Technical Support","5817","Computing - Purchase of Software","06/11/2017"
"Wolverhampton City Council","http://opendatacommunities.org/id/metropolitan-district-council/wolverhampton","SQUARESPACE INC.","151.52","Learning Technologies","7372","Computing - Purchase of Software","06/11/2017"
"Wolverhampton City Council","http://opendatacommunities.org/id/metropolitan-district-council/wolverhampton","CBA CLEVERBRIDGE AG","59.99","Technical Support","5734","Computing - Purchase of Software","06/11/2017"
"Wolverhampton City Council","http://opendatacommunities.org/id/metropolitan-district-council/wolverhampton","WICKES","2.07","Specialist Support Service - North","5211","Equipment - R & M","06/11/2017"
"Wolverhampton City Council","http://opendatacommunities.org/id/metropolitan-district-council/wolverhampton","ASDA HOME SHOPPING","91.27","Ernest Bold Court","5411","Provisions (Not for resale)","06/11/2017"
"Wolverhampton City Council","http://opendatacommunities.org/id/metropolitan-district-council/wolverhampton","WEST COAST TRAINS","10.00","Cemeteries","7523","Car Allowances","06/11/2017"
"Wolverhampton City Council","http://opendatacommunities.org/id/metropolitan-district-council/wolverhampton","WEST COAST TRAINS","18.33","Cemeteries","4112","Public Transport","06/11/2017"
"Wolverhampton City Council","http://opendatacommunities.org/id/metropolitan-district-council/wolverhampton","Trainline","121.89","Head of Corporate Landlord","4112","Public Transport","06/11/2017"
"Wolverhampton City Council","http://opendatacommunities.org/id/metropolitan-district-council/wolverhampton","SCREWFIX WOLVERHAM","36.27","Public Conveniences","5211","Materials","06/11/2017"
"Wolverhampton City Council","http://opendatacommunities.org/id/metropolitan-district-council/wolverhampton","AMZ Amazon.co.uk","-13.36","Upper Pendeford Farm Childrens Home","5969","Equipment - Purchase","06/11/2017"
"Wolverhampton City Council","http://opendatacommunities.org/id/metropolitan-district-council/wolverhampton","SNBRU AIR","558.79","Economic Development","3029","Public Transport","06/11/2017"
"Wolverhampton City Council","http://opendatacommunities.org/id/metropolitan-district-council/wolverhampton","BRITANNIA","141.67","CIN/CP Social Work Unit - Area 5","7011","Section 17","06/11/2017"
"Wolverhampton City Council","http://opendatacommunities.org/id/metropolitan-district-council/wolverhampton","GO CARZ","6.82","CIN/CP Social Work Unit - Area 5","4121","Section 17","06/11/2017"
"Wolverhampton City Council","http://opendatacommunities.org/id/metropolitan-district-council/wolverhampton","REDWINGS LODGE","83.25","CIN/CP Social Work Unit - Area 5","7011","Section 17","06/11/2017"
"Wolverhampton City Council","http://opendatacommunities.org/id/metropolitan-district-council/wolverhampton","DEBENHAMS","48.05","Business Manager - Place","5311","Equipment - Purchase","06/11/2017"
"Wolverhampton City Council","http://opendatacommunities.org/id/metropolitan-district-council/wolverhampton","COPTHORNE HOTEL MA","492.40","Strategic Director Place","7011","Services - Supplies & Services to users","06/11/2017"
"Wolverhampton City Council","http://opendatacommunities.org/id/metropolitan-district-council/wolverhampton","COPTHORNE HOTEL MA","484.60","Delivery & OCE Development","7011","Accommodation Costs","06/11/2017"
"Wolverhampton City Council","http://opendatacommunities.org/id/metropolitan-district-council/wolverhampton","VENUE CATERING PAR","148.10","Delivery & OCE Development","5811","Catering","06/11/2017"
"Wolverhampton City Council","http://opendatacommunities.org/id/metropolitan-district-council/wolverhampton","THE WORKS","8.33","Wolverhampton Indoor and Open Market","5310","Equipment - Purchase","06/11/2017"
"Wolverhampton City Council","http://opendatacommunities.org/id/metropolitan-district-council/wolverhampton","WATERSTONES","150.00","Wolverhampton Indoor and Open Market","5942","Books","06/11/2017"
"Wolverhampton City Council","http://opendatacommunities.org/id/metropolitan-district-council/wolverhampton","WOLVERHAMPTON GRAND TH","88.00","Wolverhampton Indoor and Open Market","7922","Equipment - Purchase","06/11/2017"
"Wolverhampton City Council","http://opendatacommunities.org/id/metropolitan-district-council/wolverhampton","Amazon UK Marketplace","13.99","Members Expenses","5942","Equipment - Purchase","06/11/2017"
"Wolverhampton City Council","http://opendatacommunities.org/id/metropolitan-district-council/wolverhampton","NEW FOREST HOTELS","36.67","Safeguarding Admin Resource","7011","Services - Supplies & Services to users","06/11/2017"
"Wolverhampton City Council","http://opendatacommunities.org/id/metropolitan-district-council/wolverhampton","PAYPAL  RTPI","35.00","Central Training","8398","Training Expenses","06/11/2017"
"Wolverhampton City Council","http://opendatacommunities.org/id/metropolitan-district-council/wolverhampton","XMA LTD","-25.00","Electoral Registration","7372","Computing - Purchase of Software","06/11/2017"
"Wolverhampton City Council","http://opendatacommunities.org/id/metropolitan-district-council/wolverhampton","WWW.SEVERNTRENTSEARCHE","-25.00","Disposal Costs","4900","Services - Professional Fees","06/11/2017"
"Wolverhampton City Council","http://opendatacommunities.org/id/metropolitan-district-council/wolverhampton","AMAZON SVCS EU-UK AMAZ","75.94","SEN Early Years Team","5942","Equipment - Purchase","06/11/2017"
"Wolverhampton City Council","http://opendatacommunities.org/id/metropolitan-district-council/wolverhampton","WAYFAIR STORES LIM","90.82","EIP Locality 5","5965","Grant Payments","06/11/2017"
"Wolverhampton City Council","http://opendatacommunities.org/id/metropolitan-district-council/wolverhampton","WAYFAIR STORES LIM","159.14","EIP Locality 5","5965","Grant Payments","06/11/2017"
